{"text_format":"3","workbook":"xlsx","n_sheets":8,"sheets":["INSTRUCC","Ficha","MIR","SinMatriz","Avances","AvancesAnual","Base","Listas"],"not_rendered":{"images":22,"macros":1,"external_links":6,"defined_names":120,"comments":1},"read":"whole","date_system":"1900"}

{"sheet":"INSTRUCC","index":0,"n_rows":13,"n_cols":1,"rows_kept":13}
[]
["LEA ESTO ANTES DE INICIAR"]
[]
["Al abrir este archivo se le preguntó si quería actualizar vínculos, habilitar macros, confiar en el archivo, entre otras; si no lo hizo, cierre el archivo, ábralo nuevamente y acéptelas. El sistema de su computadora está diseñado para detectar posibles afectaciones a su equipo o sistemas y por ello lanzará alertas, este archivo no supone un riesgo, si lo ha descargado directamente del portal de la ASEJ. Acepte todas las habilitaciones de seguridad que se le proponen, de lo contrario, no podrá continuar. "]
["Comience en la hoja Ficha donde registrará los nombres de los programas que registrará con Matrices de Indicadores de Desempeño y aquellos que registrará sin ellas. "]
["En seguida en la pestaña MIR comience escribiendo el nombre oficial exacto del Ente fiscalizable que registra el programa. Escriba los datos generales del programa dispuestos en la tabla vertical y posteriormente proceda a registrar cada programa en la Matriz Para Indicadores de Resultados que esta dispuesta en la parte de abajo de la hoja. Para agregar componentes y actividades utilice los botones de comando que están arriba a derecha, Por favor no agregue manualmente renglones ya que esto impedirá el correcto funcionamiento del archivo y deberá registrar de nuevo sus programas. "]
["Llenada la \"MIR\" revise exhaustivamente a información contenida ahí, pues una vez que guarde con el botón de comando dispuesto arriba a la derecha, no podrá hacer ningún cambio. Una vez hecho esto GUARDE EL PROGRAMA CON EL BOTÓN de COMANDO \"GUARDAR PROGRAMA\" ANTES DE AGREGAR OTRO. Una vez guardado puede agregar otro programa, cuando agregue otro programa desaparecerá la información que tiene en el formulario \"MIR\", no obstante la información estará resguardada en la hoja \"Base\" si guardó el programa con el botón de comando antes de agregar uno nuevo. "]
["Si posee programas que no requieren MIR puede registrarlos en la hoja \"SinMatriz\" ahí cada registro (renglón) es un programa, capture la información que se solicita en cada columna y guarde con el comando guardar de Excel (en este caso no hay un botón de guardado para transferir los datos a otra hoja). Continúe en el siguiente registro para capturar la información de otro programa."]
["En este archivo se encuentra la pestaña “Avances” que es donde registrará la información de avances semestrales con lo que cumplirá con el informe de desempeño de la gestión.  Este es el medio para hacerlo y no existe otro método para ello. "]
["Siga las instrucciones seleccionando primero el ente fiscalizable que reporta y continúe oprimiendo el botón “1” de la derecha. Esto desplegará la información proporcionada en la integración del presupuesto y de la que deberá registrar los avances. Una vez que registre los avances, puede imprimir el formulario lleno, sea en papel o como archivo PDF, para su control interno. "]
["No olvide oprimir el botón “3” que guarda su información. Al hacerlo se borrará toda la información del formulario y estará listo para registrar avances de los demás programas que haya registrado con el formulario de la hoja \"MIR\". No se preocupe, su información ha sido correctamente guardada en la base de datos, pero no puede ser recuperada ni modificada,  por lo que se sugiere que la revise bien antes de guardarla. La información de los avances de los programas se da por entregada con la hoja “Base” en las condiciones, formato y características con las que posee al momento de entregar este archivo. Su modificación, alteración, cambio de nombre en la pestaña, columnas, contraseñas o cualquier cambio que se realice dará por resultado la consideración de incumplimiento de la entrega."]
["Si su archivo en la pestaña de “Avances” no despliega ningún programa para reportar avances, se debe a que registró sus programas en la Pestaña “SinMatriz”, ahí mismo encontrará nuevas columnas en donde podrá registrar sus avances. Si no hay programas para reportar avances ni en la pestaña “SinMatriz” ni en “Avances” es porque aún no ha registrado programas en el sistema de evaluación de desempeño. Deberá hacerlo en las pestañas “MIR” y “SinMatriz” y después continuar con la pestaña “Avances” para registrar sus avances."]
["Atte. Dirección de Auditoría de Desempeño."]

{"sheet":"Ficha","index":1,"n_rows":64,"n_cols":8,"rows_kept":64}
[]
[]
[]
[]
[{"$nulls":3},"Información para la evaluación del desempeño"]
[]
[{"$nulls":3},"Nombre del Ente Fiscalizable"]
[{"$nulls":3},"O.P.D. Hospital Civil de Guadalajara"]
[]
[{"$nulls":3},"Registre por favor los programas que fueron capturados en la pestaña MIR",{"$nulls":3},"Registre por favor los programas que fueron capturados en la pestaña SinMatriz"]
[null,null,1,"909 - Servicios Integrales de Especialidad y Alta Especialidad a nuestra Población Usuaria.",null,null,1]
[null,null,2,"903 - Fortalecimiento de la gestión Institucional para la Operación del Hospital Civil de Guadalajara.",null,null,2]
[null,null,3,"157 - Formación de recursos humanos para la salud y generación de conocimiento científico",null,null,3]
[null,null,4,{"$nulls":3},4]
[null,null,5,{"$nulls":3},5]
[null,null,6,{"$nulls":3},6]
[null,null,7,{"$nulls":3},7]
[null,null,8,{"$nulls":3},8]
[null,null,9,{"$nulls":3},9]
[null,null,10,{"$nulls":3},10]
[null,null,11,{"$nulls":3},11]
[null,null,12,{"$nulls":3},12]
[null,null,13,{"$nulls":3},13]
[null,null,14,{"$nulls":3},14]
[null,null,15,{"$nulls":3},15]
[null,null,16,{"$nulls":3},16]
[null,null,17,{"$nulls":3},17]
[null,null,18,{"$nulls":3},18]
[null,null,19,{"$nulls":3},19]
[null,null,20,{"$nulls":3},20]
[null,null,21,{"$nulls":3},21]
[null,null,22,{"$nulls":3},22]
[null,null,23,{"$nulls":3},23]
[null,null,24,{"$nulls":3},24]
[null,null,25,{"$nulls":3},25]
[null,null,26,{"$nulls":3},26]
[null,null,27,{"$nulls":3},27]
[null,null,28,{"$nulls":3},28]
[null,null,29,{"$nulls":3},29]
[null,null,30,{"$nulls":3},30]
[null,null,31,{"$nulls":3},31]
[null,null,32,{"$nulls":3},32]
[null,null,33,{"$nulls":3},33]
[null,null,34,{"$nulls":3},34]
[null,null,35,{"$nulls":3},35]
[null,null,36,{"$nulls":3},36]
[null,null,37,{"$nulls":3},37]
[null,null,38,{"$nulls":3},38]
[null,null,39,{"$nulls":3},39]
[null,null,40,{"$nulls":3},40]
[null,null,41,{"$nulls":3},41]
[null,null,42,{"$nulls":3},42]
[null,null,43,{"$nulls":3},43]
[null,null,44,{"$nulls":3},44]
[null,null,45,{"$nulls":3},45]
[null,null,46,{"$nulls":3},46]
[null,null,47,{"$nulls":3},47]
[null,null,48,{"$nulls":3},48]
[null,null,49,{"$nulls":3},49]
[null,null,50,{"$nulls":3},50]
[]
[{"$nulls":3},"Número de programas con MIR (programas que fueron capturados en la pestaña MIR)",{"$nulls":3},"Número de programas sin matriz (programas que fueron capturados en la pestaña SinMatriz)"]
[]
[{"$nulls":3},"TOTAL",null,{"$f":"F62+J62","v":0}]

{"sheet":"MIR","index":2,"n_rows":114,"n_cols":25,"rows_kept":114,"merged":[[2,2,2,3],[3,2,3,3],[4,2,4,3],[5,2,5,3],[6,2,6,3],[7,2,7,3],[8,2,8,3],[9,2,9,3],[10,2,10,3],[11,1,12,1],[11,2,11,3],[12,2,12,3],[13,1,14,1],[13,2,13,3],[13,11,13,20],[14,2,14,3],[14,11,14,20],[15,1,16,1],[15,2,15,3],[15,11,15,20],[16,2,16,3],[16,11,16,20],[18,4,18,16],[18,17,18,25],[49,4,49,16],[49,17,49,25],[96,4,96,16],[96,17,96,25]]}
[]
[{"$nulls":11},"  MATRIZ DE INDICADORES PARA RESULTADOS POR PROGRAMA "]
[null,null,"Ente Fiscalizable",null,"OPD Hospital Civil de Guadalajara"]
[null,null,"Denominación del Programa 909",null,"909 - Servicios Integrales de Especialidad y Alta Especialidad a nuestra Población Usuaria."]
[null,null,"Denominación del Programa 903",null,"903 - Fortalecimiento de la gestión Institucional para la Operación del Hospital Civil de Guadalajara."]
[null,null,"Denominación del Programa 157",null,"157 - Formación de recursos humanos para la salud y generación de conocimiento científico"]
[null,null,"Categoría programática",null,"Prestación de servicios públicos"]
[null,null,"Unidad Responsable/OPD",null,"O.P.D. Hospital Civil de Guadalajara"]
[null,null,"Finalidad",null,"Desarrollo_Social"]
[null,null,"Función",null,"Salud"]
[null,null,"Sub-función",null,"2.3.2 Prestación de Servicios de Salud a la Persona"]
[null,"Plan Nacional de Desarrollo","Alineación con objetivos superiores del PND",null,"México_Incluyente"]
[null,null,"Alineación con objetivos secundarios del PND",null,"2.3. Asegurar el acceso a los servicios de salud"]
[null,"Plan Estatal de Desarrollo","Alineación con objetivos superiores del PED",null,"O14_Mejorar_la_salud_de_la_población",{"$nulls":6},"Llene la sección de la izquierda primero con los datos solicitados. \nLlene la sección de abajo con los datos solicitados."]
[null,null,"Alineación con objetivos secundarios del PED",null,"O14E1 Impulsar la integración y universalidad de los servicios de salud",{"$nulls":6},"Si es necesario agrege componentes y actividades con los botones de la derecha.\nUna vez que termine de escribir los datos del programa Pulse GUARDAR PROGRAMA con el botón del panel de la derecha. Despues de esto no es posible hacer cambios."]
[{"$nulls":11},"Si requiere imprimir la información de este progarma pulse IMPRIMIR en el botón del panel de la derecha. \nSolo es posible imprimir un programa a la vez, NO INTENTE AGREGAR OTRO PROGARAMA."]
[{"$nulls":11},"NO PULSE EL BOTÓN DE AGREGAR OTRO PROGRAMA ANTES DE GUARDAR O IMPRIMIR.\nUna vez que haya GUARDADO e IMPRESO pulse AGREGAR NUEVO PROGRAMA, los datos de la plantilla se borrarán, no se precupe los datos de su programa están salvados"]
[]
[{"$nulls":4},"I N D I C A D O R E S    909",{"$nulls":12},"P R E S U P U E S T O"]
[{"$nulls":4},"Resumen Narrativo","Nombre del indicador","Definición","Dimensión","Tipo","Método de cálculo","Frecuencia de medición","Meta Valor","Unidad de medida","Meta Porcentual","Medios de verificación","Supuestos","Capítulo 1000","Capítulo 2000","Capítulo 3000","Capítulo 4000","Capítulo 5000","Capítulo 6000","Capítulo 7000","Capítulo 8000","Capítulo 9000"]
[null,null,"Fin"]
[null,null,"Propósito"]
[null,null,"Componente 1",null,"Atenciones médicas de Especialidad y Alta Especialidad otorgadas en servicios de  urgencias, consulta externa, obstetricia, cirugía, y hospitalización.","Total de Atenciones médicas otorgadas","Este indicador refleja el porcentaje alcanzado, respecto a la meta, de la atención general a los pacientes como un reflejo de la productividad asistencial de la institución","Eficacia","Gestión","(Atenciones médicas (Realizado)/Atenciones médicas (Programado))*100","Mensual",722328,"Atención ",{"v":1,"d":"100%"},"Reporte Mensual emitido por Informática Médica. Página OPD Hospital Civil de Guadalajara sección transparencia. ","El flujo de ingresos financieros se realiza en tiempo. El precio de los insumos se mantiene estable. La demanda de atención de mantiene estable. La inflación se mantiene estable."]
[null,null,"Componente 1",null,"Atenciones médicas de Especialidad y Alta Especialidad otorgadas en servicios de  urgencias, consulta externa, obstetricia, cirugía, y hospitalización.","Porcentaje de encuestados satisfechos con la atención","Este indicador refleja el porcentaje alcanzado, respecto a la meta, de los pacientes y familiares conformes con nuestros servicios","Calidad","Gestión","(Porcentaje de encuestados con calificación igual o mayor a 80 (Realizado)/ Porcentaje de encuestados con calificación igual o mayor a 80 (Programado))*100","Mensual",91,"Porcentaje",{"v":1,"d":"100%"},"Reporte Mensual de Satisfacción de usuarios emitido por la Gerencia de Calidad. Página OPD Hospital Civil de Guadalajara sección transparencia ","El flujo de ingresos financieros se realiza en tiempo. El precio de los insumos se mantiene estable. La demanda de atención de mantiene estable. La inflación se mantiene estable. Los recursos autorizados para la plantilla de personal son suficientes para atender la demanda asistencial."]
[null,null,"Actividad 1.1",null,"Atención integral a pacientes Hospitalizados.","Total de Egresos Hospitalarios","Este indicador refleja el porcentaje alcanzado, respecto a la meta, de los pacientes que son dados de alta de los servicios de hospitalización.","Eficacia","Gestión","(Egresos hospitalarios (Realizado)/Egresos hospitalarios (Programado))*100","Mensual",64680,"Egreso Hospitalario",{"v":1,"d":"100%"},"Reporte Mensual de egresos emitido por Informática Médica. Página OPD Hospital Civil de Guadalajara sección transparencia ","Los proveedores entregan los insumos en tiempo y forma.  El flujo de ingresos financieros se realiza en tiempo. El precio de los insumos se mantiene estable. La demanda de atención se mantiene estable. La inflación se mantiene estable."]
[null,null,"Actividad 1.2",null,"Otorgamiento de Consultas externas","Total de Consultas Externas","Este indicador refleja el porcentaje alcanzado, respecto a la meta, de los pacientes que acuden a su consulta programada","Eficacia","Gestión","(Consultas Externas (Realizado)/Consultas Externas (Programado))*100","Mensual",475008,"Consulta",{"v":1,"d":"100%"},"Reporte Mensual de consultas externas  emitido por Informática Médica. Página OPD Hospital Civil de Guadalajara sección transparencia ","Los proveedores entregan los insumos en tiempo y forma.  El flujo de ingresos financieros se realiza en tiempo. El precio de los insumos se mantiene estable. La demanda de atención se mantiene estable. La inflación se mantiene estable."]
[null,null,"Actividad 1.3",null,"Realizar procedimientos quirúrgicos","Total de Cirugías","Este indicador refleja el porcentaje alcanzado, respecto a la meta,  de cirugías realizadas en la institución","Eficacia","Gestión","(Cirugías realizadas (Realizado)/Cirugías realizadas (Programado))*100","Mensual",40800,"Cirugía",{"v":1,"d":"100%"},"Reporte Mensual de cirugías  emitido por Informática Médica. Página OPD Hospital Civil de Guadalajara sección transparencia ","Los proveedores entregan los insumos en tiempo y forma.  El flujo de ingresos financieros se realiza en tiempo. El precio de los insumos se mantiene estable. La demanda de atención se mantiene estable. La inflación se mantiene estable."]
[null,null,"Actividad 1.4",null,"Atención integral a las urgencias médicas","Total de Urgencias","Este indicador refleja el porcentaje alcanzado, respecto a la meta,  de  atenciones otorgadas en urgencias","Eficacia","Gestión","(Urgencias atendidas (Realizado)/Urgencias atendidas (Programado))*100","Mensual",102000,"Situación de Urgencia",{"v":1,"d":"100%"},"Reporte Mensual de urgencias  emitido por Informática Médica. Página OPD Hospital Civil de Guadalajara sección transparencia ","Los proveedores entregan los insumos en tiempo y forma.  El flujo de ingresos financieros se realiza en tiempo. El precio de los insumos se mantiene estable. La demanda de atención se mantiene estable. La inflación se mantiene estable. Las personas mantienen el interés de seguir el tratamiento quirúrgico."]
[null,null,"Actividad 1.5",null,"Atención a pacientes obstétricas","Total de Nacimientos","Este indicador refleja el porcentaje alcanzado, respecto a la meta, de nacimientos vivos en la institución","Eficacia","Gestión","(Nacimientos (Realizado)/Nacimientos (Programado))*100","Mensual",6990,"Nacimiento",{"v":1,"d":"100%"},"Reporte Mensual de nacimientos emitido por Informática Médica. Página OPD Hospital Civil de Guadalajara sección transparencia ","Los proveedores entregan los insumos en tiempo y forma.  El flujo de ingresos financieros se realiza en tiempo. El precio de los insumos se mantiene estable. La pacientes embarazadas acuden a la atención. La inflación se mantiene estable."]
[null,null,"Actividad 1.15",null,"Atención Integral a Pacientes con COVID-19","Total de Valoraciones a pacientes con sospecha de COVID","Son los casos clínicos registrados en el Triage respiratorio en el área de COVID en el Hospital Civil de Guadalajara Dr. Juan I. Menchaca y en el Hospital Civil de Guadalajara Fray Antonio Alcalde.","Eficacia","Gestión","(Número de Valoraciones a pacientes con sospecha de COVID (Realizada) / Número de Valoraciones a pacientes con sospecha de COVID (Programado)) * 100","Mensual",10700,"Valoración",{"v":1,"d":"100%"},"Reporte Mensual de valoraciones COVID emitido por la Unidad Hospitalaria y Reporte de Epidemiología. Página OPD Hospital Civil de Guadalajara sección transparencia","Las condiciones epidemiológicas permiten   la atención. La tasa de contagio se mantiene. Los proveedores entregan los insumos en tiempo y forma.  El flujo de ingresos financieros se realiza en tiempo. El precio de los insumos se mantiene estable. La demanda de atención se mantiene estable. La inflación se mantiene estable. Los ciudadanos solicitan atención."]
[null,null,"Actividad 1.16",null,"Atención Integral a Pacientes con COVID-19","Total de Egresos del Área COVID","Este indicador refleja a los pacientes hospitalizados en el área de COVID de la unidad hopsitalaria Hospital Civil de Guadalajara Dr. Juan I. Menchaca y Hospital Civil de Guadalajara Fray Antonio Alcalde.","Eficacia","Gestión","(Egresos área COVID (Realizado) / Egresos área COVID (Programado))*100","Mensual",1800,"Egreso Hospitalario",{"v":1,"d":"100%"},"Reporte Mensual de Egresos  por COVID emitido por la Unidad Hospitalaria y Reporte de Epidemiología. Página OPD Hospital Civil de Guadalajara sección transparencia","La pandemia se mantiene. Los proveedores entregan los insumos en tiempo y forma.  El flujo de ingresos financieros se realiza en tiempo. El precio de los insumos se mantiene estable. La demanda de atención se mantiene estable. La tasa de hospitalización se mantiene."]
[null,null,"Componente 2",null,"Atención  y educación otorgada en programas de prevención, promoción y difusión en salud.","Total de Personas Beneficiadas directas por Acciones Preventivas","Este indicador refleja el porcentaje alcanzado, respecto a la meta,  de  las personas que se aplicaron alguna vacuna o que acudieron a alguna campaña de detección oportuna de enfermedades en nuestra institución.","Eficacia","Gestión","(Personas Beneficiadas directas por Acciones Preventivas (Realizado)/Beneficiados directos por Acciones Preventivas (Programado))*100","Mensual",53000,"Persona",{"v":1,"d":"100%"},"Reporte Mensual emitido  por Medicina Preventiva, Informática Médica, Banco de Sangre y Neonatología. Página OPD Hospital Civil de Guadalajara sección transparencia. ","El precio  y suministro de las vacunas se mantiene estable. La inflación se mantiene estable. La demanda  de servicios se mantiene."]
[null,null,"Actividad 2.1",null,"Aplicación de vacunas","Total de Vacunas aplicadas","Este indicador refleja el porcentaje alcanzado, respecto a la meta,  de  las personas que se aplicaron alguna vacuna o que acudieron a alguna campaña de detección oportuna de enfermedades en nuestra institución.","Eficacia","Gestión","(Dosis de vacunas aplicadas (Realizado)/Dosis de vacunadas aplicadas (Programado))*100","Mensual",24900,"Vacuna",{"v":1,"d":"100%"},"Reporte Mensual emitido  por Medicina Preventiva en el Hospital Civil de Guadalajara Fray Antonio Alcalde y reporte mensual emitido por Informática Médica en el Hospital Civil de Guadalajara Dr. Juan I. Menchaca.  Página OPD Hospital Civil de Guadalajara sección transparencia. ","Los ciudadanos acuden y los padres llevan a sus hijos a vacunar.  La Secretaría de Salud Jalisco entrega en tiempo y forma los biológicos suficientes.  La Secretaría de Salud Federal o los laboratorios fabricantes entregan en tiempo y forma los biológicos suficientes a la Secretaría de Salud Jalisco."]
[null,null,"Actividad 2.2",null,"Detección oportuna de enfermedades.","Total de personas beneficiadas por acciones de detección oportuna de enfermedades ","Este indicador refleja el porcentaje alcanzado, respecto a la meta, de las personas atendidas en prevención de enfermedades.","Eficacia","Gestión","(Personas beneficiadas en acciones de detección oportuna de enfermedades (Realizados) / Personas atendidas en campañas de detección oportuna de enfermedades (Programados)) *100","Mensual",30600,"Persona",{"v":1,"d":"100%"},"Reporte Mensual de Personas Beneficiadas  emitido por Informática Médica, Banco de Sangre y Neonatología. Página OPD Hospital Civil de Guadalajara sección transparencia. ","Los ciudadanos participan en las  acciones de prevención y detección oportuna. "]
[null,null,"Actividad 2.3",null,"Realización de acciones de promoción a la salud","Total de Acciones de promoción a la salud","Este indicador refleja el porcentaje alcanzado, respecto a la meta,  de las acciones que realiza la institución para promover y orientar a los pacientes y comunidad en materia de salud","Eficacia","Gestión","(Acciones de promoción a la salud (Realizado) / Acciones de promoción a la salud (Programado))*100","Mensual",57300,"Acción",{"v":1,"d":"100%"},"Reporte Mensual de promoción a la salud emitido por Comunicación Social y Trabajo Social. Página OPD Hospital Civil de Guadalajara sección transparencia. ","Los pacientes, familiares y ciudadanos en general participan en las acciones."]
[null,null,"Componente 3",null,"Infraestructura y equipamiento realizadas para Hospitales Civiles","Total de áreas construidas o rehabilitadas","Este indicador mide la la meta alcanzada en comparación con las áreas programadas para contruir y/o rehabiltar, se puede tratar de un área nueva o rehabilitar áreas existentes de manera total o las etapas contempladas en el ciclo fiscal correspondiente de acuerdo al proyecto respectivo.","Calidad","Gestión","(Número de áreas construidas o rehabilitadas (Realizado)/Número de áreas construidas o rehabilitada (Programado))*100","Anual",1,"Área",{"v":1,"d":"100%"},"Reporte semestral emitido por la Coordinación General de Servicios Generales y en la Relación de Obra Pública/Proyectos de Inversión del Hospital Civil de Guadalajara http://148.202.57.2/PAGs/Sec_Transparencia/transp_VIII_06.php?opcIns=C","El flujo de ingresos financieros se realiza en tiempo. El precio de los materiales se mantiene estable. La inflación se mantiene estable. Los proveedores cumplen en tiempo con el avance físico de la obra."]
[null,null,"Componente 3.1",null,"Ejecución del ejercicio financiero en obra","Total del recurso económico ejercido en obra","Este indicador mide el porcentaje del avance finaciero del presupuesto ejercido para la construcción y/o rehabilitación de las áreas programadas en comparación con el presupuesto destinado para ese fin.","Economía","Gestión","(Número de Recursos financieros ejercido en obra (realizado)/Número de Recursos financieros ejercido en obra  (programado))*100","Mensual",40002321,"Recurso",{"v":1,"d":"100%"},"Reporte trimestral de recursos económicos ejercidos en obra emitido por la Coordinación General de Finanzas y Relación de Obra Pública/ Proyectos de Inversión del Hospital Civil de Guadalajara http://148.202.57.2/PAGs/Sec_Transparencia/transp_VIII_06.php?opcIns=C  ","La transferencia de recursos financieros se realiza en tiempo. Los proveedores cumplen con el avance físico de obra y con el proceso administrativo para el pago."]
[null,null,"Actividad 3.2",null,"Ejecución de obra","Porcentaje de ejecución de obra","Este indicador mide el porcentaje del avance de obra en metros cuadrados de construcción y/o rehabilitación de las áreas programadas.","Eficacia","Gestión","(Porcentaje de avance de obra (realizado) / Porcentaje de  avance de obra  (programado))*100\n","Mensual",100,"Porcentaje",{"v":1,"d":"100%"},"Reporte mensual  de obra emitido por la Coordinación General de Servicios Generales y Relación de Obra Pública/ Proyectos de Inversión del Hospital Civil de Guadalajara http://148.202.57.2/PAGs/Sec_Transparencia/transp_VIII_06.php?opcIns=C  ","El flujo de ingresos financieros se realiza en tiempo.  Los proveedores cumplen en tiempo y forma con la obra."]
[null,null,"Componente 4",null,"Atenciones médicas otorgadas a recién nacidos niñas y niños en la Unidad de Cuidados Intensivos Neonatales (UCIN) para promover el desarrollo infantil temprano y prevenir muertes infantiles.","Total de Altas de la Unidad de Cuidados Intensivos Neonatales","Este indicador refleja el porcentaje alcanzado respecto a la meta de los pacientes que son dados de alta de la Unidad de Cuidados Intensivos Neonatales (UCIN).","Eficacia","Gestión","(Alta de UCIN (Realizado / Alta de UCIN (Programado))*100","Mensual",1200,"Alta",{"v":1,"d":"100%"},"Reporte Mensual emitido por Jefatura de Neonatología. Página OPD Hospital Civil de Guadalajara sección transparencia. ","Los proveedores entregan los insumos en tiempo y forma.  El flujo de ingresos financieros se realiza en tiempo. El precio de los insumos se mantiene estable. La demanda de atención de mantiene estable. La inflación se mantiene estable. Las causas de morbilidad materna se mantienen estables."]
[null,null,"Componente 4",null,"Atenciones médicas otorgadas a recién nacidos niñas y niños en la Unidad de Cuidados Intensivos Neonatales (UCIN) para promover el desarrollo infantil temprano y prevenir muertes infantiles.","Porcentaje de mortalidad en la Unidad de Cuidados Intensivos Neonatales","Este indicador refleja el porcentaje alcanzado respecto a la meta de recién nacidos fallecidos en la Unidad de Cuidados Intensivos Neonatales (UCIN). Se calcula de los Niños fallecidos en la unidad de cuidado intensivos neonatales entre los egresos en la UCIN por cien.","Eficacia","Gestión","(Porcentaje de mortalidad en UCIN (Realizado) /Porcentaje de mortalidad en UCIN (Programado))*100","Semestral",32,"Porcentaje",{"v":1,"d":"100%"},"Reporte Semestral de mortalidad emitido por Jefatura de Neonatología. Página OPD Hospital Civil de Guadalajara sección transparencia. ","Las madres de los pacientes desarrollan y/o mantienen estilos de vida saludables. Los gobiernos desarrollan y/o mantienen entornos saludables y programas de salud materna. La Secretaría de Educación implementa estrategias para lograr aprendizajes significativos en educación para la salud. Los proveedores entregan los insumos en tiempo y forma.  El flujo de ingresos financieros se realiza en tiempo. El precio de los insumos se mantiene estable. La demanda de atención de mantiene estable. La inflación se mantiene estable. Las causas de morbilidad materna se mantienen estables. "]
[null,null,"Componente 4",null,"Atenciones médicas otorgadas a recién nacidos niñas y niños en la Unidad de Cuidados Intensivos Neonatales (UCIN) para promover el desarrollo infantil temprano y prevenir muertes infantiles.","Porcentaje de encuestados satisfechos con la atención de la Unidad de Cuidados Intensivos Neonatales  a niñas recién nacidas","Este indicador refleja el porcentaje alcanzado respecto a la meta de los usuarios satisfechos con la atención de recién nacidas niñas en la Unidad de Cuidados Intensivos Neonatales (UCIN)","Calidad","Gestión","(Porcentaje de encuestados con calificación igual o mayor a 80  en la atención en UCIN a niñas recién nacidas  (Realizado)/Porcentaje de encuestados con calificación igual o mayor a 80  en la atención en UCIN de niñas recién nacidas (Programado))*100","Mensual",90,"Porcentaje",{"v":1,"d":"100%"},"Reporte Mensual de encuestas de satisfacción para el sexo femenino  emitido por Gerencias de Calidad. Página OPD Hospital Civil de Guadalajara sección transparencia.","El flujo de ingresos financieros se realiza en tiempo. El precio de los insumos se mantiene estable. La demanda de atención de mantiene estable. La inflación se mantiene estable. Los recursos autorizados para la plantilla de personal son suficientes para atender la demanda asistencial."]
[null,null,"Componente 4",null,"Atenciones médicas otorgadas a recién nacidos niñas y niños en la Unidad de Cuidados Intensivos Neonatales (UCIN) para promover el desarrollo infantil temprano y prevenir muertes infantiles.","\nPorcentaje de encuestados satisfechos con la atención de la Unidad de Cuidados Intensivos Neonatales  a niños recién nacidos","Este indicador refleja el porcentaje alcanzado respecto a la meta de los usuarios satisfechos con la atención de recién nacidos niños en la Unidad de Cuidados Intensivos Neonatales (UCIN)","Calidad","Gestión","(Porcentaje de encuestados con calificación igual o mayor a 80  en la atención  en UCIN a niños recién nacidos (Realizado) / porcentaje de encuestados con calificación igual o mayor a 80  en la atención en UCIN de niños recién nacidos  (Programado))*100","Mensual",90,"Porcentaje",{"v":1,"d":"100%"},"Reporte Mensual de encuestas de satisfacción para el sexo masculino emitido por Gerencias de Calidad. Página OPD Hospital Civil de Guadalajara sección transparencia. ","El flujo de ingresos financieros se realiza en tiempo. El precio de los insumos se mantiene estable. La demanda de atención de mantiene estable. La inflación se mantiene estable. Los recursos autorizados para la plantilla de personal son suficientes para atender la demanda asistencial."]
[null,null,"Actividad 4.1",null,"Prevención del dolor ","Total de pacientes  Beneficiados de medidas preventivas de dolor en la Unidad de Cuidados Intensivos Neonatales                  ","Este indicador refleja el porcentaje alcanzado respecto a la meta de pacientes que reciben medidas preventivas de dolor en la Unidad de Cuidados Intensivos Neonatales (UCIN). Las medidas preventivas de dolor son no farmacológicas y farmacologicas con el objetivo de reducir el dolor ocasionado por las intervenciones terapéuticas o diagnósticas derivadas de su atención.","Eficacia","Gestión","(Pacientes que reciben medidas preventivas de dolor (realizadas) / Pacientes que reciben medidas preventivas de dolor (programadas))*100","Mensual",1200,"Paciente",{"v":1,"d":"100%"},"Reporte Mensual de medidas preventivas de dolor emitido por Jefatura de Neonatología. Página OPD Hospital Civil de Guadalajara sección transparencia. ","Los proveedores entregan los insumos en tiempo y forma.  El flujo de ingresos financieros se realiza en tiempo. El precio de los insumos se mantiene estable. La demanda de atención de mantiene estable. La inflación se mantiene estable."]
[null,null,"Actividad 4.2",null,"Promoción a la lactancia materna.","Total de pacientes niñas y niños en la Unidad de Cuidados Intensivos Neonatales alimentados con leche materna    ","Este indicador refleja el porcentaje alcanzado respecto a la meta de pacientes que han recibido leche materna  en cualquiera cantidad, por cualquier via y en cualquier momento durante su estancia en la Unidad de Cuidados Intensivos Neonatales (UCIN)","Eficacia","Gestión","(Pacientes que reciben alimentación con leche materna(realizadas) / Pacientes que reciben alimentación con leche materna (programados))*100","Mensual",1200,"Paciente",{"v":1,"d":"100%"},"Reporte Mensual de lactancia materna emitido por Jefatura de Neonatología. Página OPD Hospital Civil de Guadalajara sección transparencia. ","La Secretaría de Salud promueve la lactancia materna. Las empresas e instituciones otorgan facilidades para que las madres trabajadoras proporcionen la leche materna. La madre otorga la leche materna."]
[null,null,"Actividad 4.3",null,"Capacitación en lactancia materna a los padres de recién nacidos hospitalizados ","Total de personas beneficiadas de asesoría en lactancia materna en usuarios de la Unidad de Cuidados Intensivos Neonatales                    ","Este indicador refleja el porcentaje alcanzado respecto a la meta de padres y/o familiares de pacientes de la Unidad de Cuidados Intensivos Neonatales (UCIN) que han recibido asesoria en lactancia materna.","Eficacia","Gestión","(Personas beneficiadas de asesoría en lactancia materna (realizadas) / Personas beneficiadas de asesoría en lactancia materna (programados))*100","Mensual",2440,"Persona",{"v":1,"d":"100%"},"Reporte Mensual de asesoría en lactancia emitido por Jefatura de Neonatología. Página OPD Hospital Civil de Guadalajara sección transparencia. ","Los padres o tutores aceptan participar en la asesoría"]
[]
[]
[]
[]
[{"$nulls":4},"I N D I C A D O R E S     903",{"$nulls":12},"P R E S U P U E S T O"]
[{"$nulls":4},"Resumen Narrativo","Nombre del indicador","Definición","Dimensión","Tipo","Método de cálculo","Frecuencia de medición","Meta Valor","Unidad de medida","Meta Porcentual","Medios de verificación","Supuestos","Capítulo 1000","Capítulo 2000","Capítulo 3000","Capítulo 4000","Capítulo 5000","Capítulo 6000","Capítulo 7000","Capítulo 8000","Capítulo 9000"]
[null,null,"Fin"]
[null,null,"Propósito"]
[null,null,"Componente 1",null,"Atención y capacitación proporcionados en materia de Transparencia, acceso a la información,  protección de datos y mejora regulatoria","Total de Acciones en transparencia, acceso a la información, protección de datos y mejora regulatoria. ","Este indicador refleja el porcentaje alcanzado respecto a la meta de las y los servidores públicos del Hospital Civil de Guadalajara capacitados por el Órgano Interno de Control en materia de  prevención de conductas indebidas, sanciones administrativas  y actos de corrupción. Se calcula a través del número alcanzado de personas capacitadas, entre el número programado de personas capacitadas.","Eficiencia","Gestión","(Acciones de transparencia, acceso a la información, protección de datos y mejora regulatoria (Realizada)/Acciones  de transparencia, acceso a la información, protección de datos y mejora regulatoria (Programado))*100","Semestral",7000,"Acción",{"v":1,"d":"100%"},"Reporte Semestral emitido por  la Coordinación General de Mejora Regulatoria y Transparencia. Página OPD Hospital Civil de Guadalajara sección transparencia","La cultura de los ciudadanos sobre el ejercicio de su derecho al acceso a la información pública se mantiene o mejora."]
[null,null,"Actividad 1.1",null,"Atención y capacitación en materia de transparencia y acceso a la información","Total de Solicitudes de acceso a la información pública y acceso a datos personales","Este indicador refleja el porcentaje alcanzado respecto a la meta en la atención de la recepción, identificación y evaluación de las quejas y denuncias recibidas mediante formato con  los elementos necesarios para dar inicio a un proceso de investigación, tanto internas, como externas al Hospital Civil de Guadalajara.  Se calcula a través del número de las quejas y denuncias en formato atendidas,  entre  el número programado de quejas y denuncias en formato recibidas.","Eficiencia","Gestión","(Solicitudes de acceso a la información pública y datos personales atendidas (Realizado)/ Solicitudes de acceso a la información pública y datos personales atendidas (Programado))*100","Mensual",3720,"Solicitud",{"v":1,"d":"100%"},"Reporte Mensual de solicitudes de información pública emitido por el Departamento de Transparencia y el Departamento  de Protección de Datos. Página OPD Hospital Civil de Guadalajara sección transparencia.","Los ciudadanos mantienen el interés por acceder a la información pública. Los ciudadanos ejercen su derecho al acceso a sus datos personales."]
[null,null,"Actividad 1.2",null,"Atención y capacitación en materia de transparencia y acceso a la información","Total personas capacitadas en materia de transparencia y acceso a la información ","Este indicador refleja el porcentaje alcanzado respecto a la meta de la atención  a oficios sobre quejas y denuncias, de servidores públicos, usuarios y particulares, con  los elementos necesarios para dar inicio a un proceso de investigación. El resultado se obtiene a través de los reportes atendidos entre los reportes recibidos en el mismo período.","Eficiencia","Gestión","(Personas capacitadas en transparencia y acceso a la información (Realizado)/ Personas capacitadas en transparencia y acceso a la información (Programado))*100","Trimestral",1500,"Persona Capacitada",{"v":1,"d":"100%"},"Reporte Trimestral de capacitación de transparencia emitido por el Departamento de Transparencia. Página OPD Hospital Civil de Guadalajara sección transparencia.","Las personas muestran interés en  la capacitación de transparencia y acceso a la información."]
[null,null,"Actividad 1.3",null,"Atención y capacitación en materia de transparencia y acceso a la información","Total de Recursos de revisión","Este indicador refleja el porcentaje alcanzado respecto a la meta de las auditorias iniciadas en el período. Se obtiene a través de las auditorias iniciadas entre las auditorias programadas.","Eficiencia","Gestión","(Recursos de revisión resueltos (Realizado)/Recursos de revisión resueltos (Programado)*100","Trimestral",24,"Recurso",{"v":1,"d":"100%"},"Reporte Trimestral de recursos de revisión  emitido por el Departamento de Transparencia. Página OPD Hospital Civil de Guadalajara sección transparencia","Los ciudadanos interponen recursos de revisión."]
[null,null,"Actividad 1.4",null,"Atención y capacitación en materia de protección de datos personales","Total personas capacitadas en protección de datos personales","Este indicador refleja el porcentaje alcanzado respecto a la meta de las investigaciones iniciadas por el Órgano Interno de Control procedentes de una queja, denuncia o reporte para detectar faltas administrativas o hechos de corrupción. Debido a que el tiempo de duración de una investigación es variable, incluso meses, se incluyen solo las iniciadas. El resultado se obtiene a través de las investigaciones iniciadas entre las investigaciones con elementos de procedencia completos.","Eficiencia","Gestión","(Personas capacitadas en protección de datos personales (Realizado)/Personas capacitadas en protección de datos personales (Programado))*100","Trimestral",1500,"Persona Capacitada",{"v":1,"d":"100%"},"Reporte Trimestral de capacitación de protección de datos emitido por el Departamento de Protección de Datos. Página OPD Hospital Civil de Guadalajara sección transparencia","Las personas muestra interés en la capacitación de protección de datos personales."]
[null,null,"Actividad 1.5",null,"Gestión en mejora regulatoria","Porcentaje de Información fundamental","Este indicador refleja el porcentaje alcanzado respecto a la meta de las sanciones ejecutadas a los servidores públicos de la institución responsables de conductas indebidas. Se obtiene de las sanciones ejecutadas entre el total de sanciones ejecutables.","Eficiencia","Gestión","(Porcentaje de elementos de información fundamental publicados (Realizado)/Porcentaje de elementos de información fundamental publicados (Programado))*100","Trimestral",100,"Porcentaje",{"v":1,"d":"100%"},"Reporte Trimestral de la información fundamental emitido por el Departamento de Mejora Regulatoria. Página OPD Hospital Civil de Guadalajara sección transparencia","El proveedor mantiene funcionando de forma permanente el servicio de internet. El proveedor de la dirección pública de internet de la página web del hospital  mantiene  el servicio funcionando de forma permanente."]
[null,null,"Actividad 1.6",null,"Gestión en mejora regulatoria","Porcentaje de Obligaciones de Transparencia comunes","Este indicador refleja el porcentaje alcanzado respecto a la meta, de los Formatos de Plataforma Nacional de Transparencia publicados relativos a las Obligaciones de Transparencia Comunes en comparación  con las obligaciones establecidas  en la Ley General de Transparencia y Acceso a la Información Pública.","Eficiencia","Gestión","(Porcentaje de formatos de Plataforma Nacional de Transparencia publicados (Realizado)/Porcentaje de  formatos de Plataforma Nacional de Transparencia publicados (Programado))*100","Trimestral",100,"Porcentaje ",{"v":1,"d":"100%"},"Reporte Trimestral de obligaciones de transparencia emitido por el Departamento de Mejora Regulatoria. Página OPD Hospital Civil de Guadalajara sección transparencia","El proveedor mantiene funcionando de forma permanente el servicio de internet.  La Plataforma Nacional de Transparencia funciona de manera regular."]
[null,null,"Componente 2",null,"Actividades consultivas de carácter administrativo y de representación jurisdiccional ejecutadas","Total de Actividades jurídicas","Este indicador refleja el porcentaje alcanzado respecto a la meta, de las actividades consultivas de carácter administrativo interno en materia de licitaciones, contratos y convenios, asuntos laborales y normativa. Asimismo, incluye la representación en juicios y órganos jurisdiccionales.","Eficiencia","Gestión","(Actividades consultivas de carácter administrativo y de representación jurisdiccional (Realizado)/Actividades consultivas de carácter administrativo y de representación jurisdiccional (Programado))*100","Semestral",11842,"Actividad",{"v":1,"d":"100%"},"Reporte Semestral emitido por la Coordinación General Jurídica. Página OPD Hospital Civil de Guadalajara sección transparencia","Terceros promueven o aceptan convenios, demandan o incumplen con la institución. Dependencias solicitan colaboración jurisdiccional. Proveedores concurren y participan en procesos de adquisiciones. Se reforma la normativa."]
[null,null,"Actividad 2.1",null,"Revisión y/o elaboración de instrumentos jurídicos con terceros","Total de Instrumentos Jurídicos","Este indicador refleja el porcentaje alcanzado respecto a la meta, sobre la revisión y elaboración de convenios, contratos que no derivan de una licitación, acuerdos y cartas de intención que el Hospital podría celebrar con terceros.","Eficiencia","Gestión","(Instrumentos jurídicos revisados y elaborados (Realizado)/Instrumentos jurídicos revisados y elaborados (Programado))*100","Trimestral",225,"Instrumento",{"v":1,"d":"100%"},"Reporte Trimestral de instrumentos jurídicos emitido por el Departamento de Convenios y Contratos. Página OPD Hospital Civil de Guadalajara sección transparencia","Los terceros muestran interés o aceptan convenir con el Hospital Civil de Guadalajara"]
[null,null,"Actividad 2.2",null,"ntegración de procedimientos administrativos de investigación laboral","Total de Investigaciones laborales","Este indicador refleja el porcentaje alcanzado respecto a la meta, de la integración de investigaciones en materia laboral iniciadas por la Coordinación General Jurídica. Debido a que el tiempo de duración de una investigación es variable, se incluyen solo las iniciadas. ","Eficiencia","Gestión","(Investigaciones laborales iniciadas (Realizado)/Investigaciones laborales iniciadas (Programado))*100","Trimestral",145,"Investigación",{"v":1,"d":"100%"},"Reporte Trimestral de investigaciones laborales emitido por el Departamento Laboral. Página OPD Hospital Civil de Guadalajara sección transparencia.","Se generan reportes para iniciar la investigación."]
[null,null,"Actividad 2.3",null,"Colaboración jurisdiccional con dependencias estatales y federales","Total de Procesos de colaboración jurídica interinstitucional","Este indicador refleja el porcentaje alcanzado respecto a la meta, sobre la gestión de información interna que realiza la Coordinación General Jurídica para fortalecer la colaboración jurisdiccional interinstitucional; incluye: investigación de desaparecidos, atención de peticiones de información diversa que dependencias estatales o federales solicitan al Hospital Civil de Guadalajara, denuncias de menores víctimas de malos tratos o embarazos en adolescentes, y corrección de certificados de nacimiento.","Eficiencia","Gestión","(Procesos de gestión de información jurídica colaborativa (Realizado)/Procesos de gestión de información jurídica colaborativa  Programado))*100","Mensual",9000,"Proceso",{"v":1,"d":"100%"},"Reporte Mensual de colaboraciones jurídicas emitido por el Departamento de Unidades Hospitalarias. Página OPD Hospital Civil de Guadalajara sección transparencia.","Las dependencias estatales o federales solicitan información."]
[null,null,"Actividad 2.4",null,"Representación en acciones jurisdiccionales que involucran los intereses legales del Hospital Civil de Guadalajara","Total de Juicios iniciados","Este indicador refleja el porcentaje alcanzado respecto a la meta, sobre  el seguimiento a las acciones jurisdiccionales que involucran los intereses legales del Hospital Civil de Guadalajara, con excepción de la materia laboral. Incluye aquellas acciones de juicios iniciados que integran emplazamientos y el ejercicio de acción.","Eficiencia","Gestión","(Representaciones en juicios iniciados (Realizado)/Representaciones en juicios iniciados (Programado))*100","Trimestral",45,"Juicio",{"v":1,"d":"100%"},"Reporte Trimestral de juicios emitido por el Departamento de Juicios. Página OPD Hospital Civil de Guadalajara sección transparencia.","Terceros demandan a la Institución o incumplen una obligación."]
[null,null,"Actividad 2.5",null,"Celebración de contratos derivados de una licitación y penalización de incumplimientos","Total de Contratos licitatorios","Este indicador refleja el porcentaje alcanzado respecto a la meta, sobre la celebración de contratos con proveedores derivados de una licitación.","Eficiencia","Gestión","(Contratos licitatorios celebrados (Realizado)/Contratos licitatorios celebrados (Programado))*100","Trimestral",935,"Contrato",{"v":1,"d":"100%"},"Reporte Trimestral de contratos emitido por el Departamento Consultivo y Fortalecimiento Institucional. Página OPD Hospital Civil de Guadalajara sección transparencia.","Las empresas concurren y participan en las licitaciones. El flujo de ingresos financieros para el hospital es suficiente y se realiza en tiempo."]
[null,null,"Actividad 2.6",null,"Celebración de contratos derivados de una licitación y penalización de incumplimientos","Total de sanciones a proveedores","Este indicador refleja el porcentaje alcanzado respecto a la meta, sobre la penalización a los proveedores que incumplen con los contratos derivados de una licitación.","Eficiencia","Gestión","(Sanciones a proveedores (Realizado)/Sanciones a proveedores (Programado))*100","Trimestral",2950,"Sanción",{"v":1,"d":"100%"},"Reporte Trimestral de sanciones emitido por el Departamento Consultivo y Fortalecimiento Institucional. Página OPD Hospital Civil de Guadalajara sección transparencia.","Las empresas concurren y participan en las licitaciones."]
[null,null,"Actividad 2.7",null,"Dictaminación de la normatividad institucional","Total de Dictámenes de leyes, normas o reglamentos","Este indicador refleja el porcentaje alcanzado respecto a la meta, sobre la revisión, análisis y dictaminación del impacto en la Institución de las reformas a leyes, normas o reglamentos.","Eficiencia","Gestión","(Leyes, normas o reglamentos dictaminados (Realizado)/Leyes, normas o reglamentos dictaminados (Programado))*100","Trimestral",125,"Dictamen",{"v":1,"d":"100%"},"Reporte Trimestral de dictámenes emitido por el Departamento de Normas y Procedimientos. Página OPD Hospital Civil de Guadalajara sección transparencia.","Las dependencias gubernamentales reforman leyes, normas o reglamentos."]
[null,null,"Componente 3",null,"Proyectos, acciones y programas públicos gestionados, desarrollados, ejecutados y evaluados alineados al Plan institucional, Plan Estatal de Gobernanza y Plan Nacional de Desarrollo para el fortalecimiento institucional","Total de reportes de avances en proyectos, acciones y programas públicos","Este indicador refleja el porcentaje alcanzado respecto a la meta,  sobre los reportes de avance del Programa Anual de Trabajo Institucional en el que se reflejan la gestión, ejecución y evaluación de proyectos, acciones y programas públicos alineados a la misión y visión del Hospital, el  Plan institucional,  el Plan Estatal de Gobernanza y Desarrollo de Jalisco, y el  Plan Nacional de Desarrollo, para el fortalecimiento institucional","Eficiencia","Gestión","(Reporte de avances en proyectos, acciones y programas públicos (Realizado)/Reporte de avances en Proyectos, acciones y programas públicos (Programado))*100","Semestral",24,"Reporte",{"v":1,"d":"100%"},"Reporte Semestral del Programa Anual de Trabajo institucional. Página OPD Hospital Civil de Guadalajara sección transparencia.","Las áreas administrativas muestran interés en desarrollar proyectos. Se aprueban proyectos."]
[null,null,"Actividad 3.1",null,"Planeación, evaluación y desarrollo de los programas institucionales","Total de Informes integrados de planeación, evaluación y desarrollo ","Este indicador refleja el porcentaje alcanzado respecto a la meta, sobre la integración de informes relativos a la planeación, evaluación y desarrollo de los programas institucionales. Incluyen: Informe Pormenorizado en Materia Legal, Informe Situacional de Administración, Operación, Control y Rendición de Cuentas, Informe de Estadísticas de Natalidad, Morbilidad y Mortalidad, Informe del Programa Anual de Trabajo (PAT), Informe del Anteproyecto de Presupuesto del HCG, Informe de Desempeño en la Gestión, Informe de la Matriz de Indicadores de Resultados (MIR), Informe de indicadores del Programa Estatal de Protección Integral de Niñas, Niños y Adolescentes del Estado de Jalisco (PROESPINNA) dentro del marco del Sistema de Protección Integral de Niñas, Niños y Adolescentes federal (SIPINNA), Informe para la integración del Informe de Gobierno del Estado de Jalisco.","Eficiencia","Gestión","(Informes integrados  de planeación, evaluación y desarrollo (Realizado)/ Informes integrados de planeación, evaluación y desarrollo (Programado))*100","Trimestral",106,"Informe",{"v":1,"d":"100%"},"Reporte Trimestral de Informes integrados en la Coordinación General de Planeación, Evaluación y Desarrollo. Página OPD Hospital Civil de Guadalajara sección transparencia","Las áreas generadoras entregan en tiempo y forma la información."]
[null,null,"Actividad 3.2",null,"Administración de Recursos Humanos","Porcentaje de Recursos destinados a personal de prestación de servicios","Este indicador evalúa el porcentaje de recursos financieros que se aplican en personal para la prestación de servicios en relación al presupuesto para recursos humanos (capítulo 1000). ","Eficiencia","Gestión","(Porcentaje de recurso aplicado en el personal para la prestación de servicios (Realizado)/Porcentaje de recurso aplicado en el personal para la prestación de servicios (Programado))*100","Mensual",96,"Porcentaje",{"v":1,"d":"100%"},"Reporte Mensual de recursos de prestación de servicios emitido por la Coordinación General de Recursos Humanos. Página OPD Hospital Civil de Guadalajara sección transparencia","El recurso para el personal se ministra en tiempo y forma. El recurso para el personal es suficiente."]
[null,null,"Actividad 3.3",null,"Elaboración de informes financieros en apego a la normatividad para la administración eficiente de los recursos","Total de Informes financieros","Este indicador mide el cumplimiento de la organización con los informes financieros que la normatividad establece, incluyen los estados financieros (presupuestal, contable y programático) del ejercicio en curso, la cuenta pública del ejercicio inmediato anterior y los informes de avance de gestión financiera.","Eficiencia","Gestión","(Informes financieros (Realizado)/Informes financieros (Programado))*100","Trimestral",22,"Informe",{"v":1,"d":"100%"},"Reporte Trimestral emitido por la Coordinación General de Finanzas. Página OPD Hospital Civil de Guadalajara sección transparencia","Las dependencias responsables no realizan cambios sustantivos en los procesos de programación  de los recursos que conduzcan a reformulación de los informes"]
[null,null,"Actividad 3.4",null,"Programación y ejecución de procesos de adquisición de bienes, servicios y activos para la operación de la institución.","Total de Procesos de licitación","Este indicador mide los procesos de adquisiciones a través de licitaciones con y sin concurrencia del Comité de Adquisiciones, Enajenaciones y Arrendamientos de Bienes Muebles y Contratación de Servicios, en apego a la normatividad.","Eficiencia","Gestión","(Procesos de licitación ejecutados (Realizado)/Procesos de licitación ejecutados (Programado))*100","Trimestral",200,"Licitación",{"v":1,"d":"100%"},"Reporte Trimestral emitido por la Coordinación General de Adquisiciones. Página OPD Hospital Civil de Guadalajara sección transparencia","La normatividad gubernamental estatal y federal permite que la institución realice todas las licitaciones. Los recursos financieros autorizados y ministrados al hospital por las dependencias correspondientes son suficientes y se entregan a tiempo.  Los convenios con dependencias gubernamentales estatales y federales se celebran de forma oportuna."]
[null,null,"Actividad 3.5",null,"Obtención de donativos para fortalecer las funciones sustantivas de la institución.","Total de Donativos obtenidos","Este indicador evalúa la capacidad de gestión de la institución para conseguir recursos adicionales con la finalidad de fortalecer sus funciones sustantivas, a través de donativos que provienen de personas físicas, empresas u organismos de la sociedad civil, ya sean económicos o en especie.","Eficiencia","Gestión","(Donativos obtenidos (Realizado)/Donativos obtenidos (Programado))*100","Trimestral",157,"Donativo",{"v":1,"d":"100%"},"Reporte Trimestral emitido por la Coordinación General de Gestión y Procuración de Recursos. Página OPD Hospital Civil de Guadalajara sección transparencia","Las personas físicas, empresas u organismos de la sociedad civil mantienen su voluntad y capacidad de donar. La normatividad fiscal incentiva los donativos."]
[null,null,"Actividad 3.6",null,"Realización de acciones para la recuperación de la información institucional en casos de desastre, con la finalidad de dar continuidad a las operaciones de la institución.","Total de Respaldos de bases de datos institucionales","Este indicador mide los respaldos de la información contenida en las bases de datos institucionales, incluyendo los respaldos incrementales (cada 24 hrs) y los full back up (semanales), con la finalidad de contribuir a la continuidad de las operaciones de la institución en casos de desastre.","Eficiencia","Gestión","(Respaldos de bases de datos (Realizado)/Respaldos de bases de datos (Programado))*100","Mensual",840,"Base de Datos",{"v":1,"d":"100%"},"Reporte Mensual de respaldos emitido por la Coordinación General de Informática. Página OPD Hospital Civil de Guadalajara sección transparencia","Los proveedores de equipos e insumos necesarios para los respaldos cumplen."]
[null,null,"Actividad 3.7",null,"Atención de solicitudes de los usuarios internos sobre servicios informáticos, para el funcionamiento adecuado y suficiente de las tecnologías de la información.","Total de solicitudes de servicios informáticos","Este indicador mide la capacidad de respuesta del área de informática a las solicitudes de los usuarios internos gestionadas a través de la mesa de ayuda.","Eficiencia","Gestión","(Solicitudes de servicios informáticos atendidas (realizado)/Solicitudes de servicios informáticos atendidas (programado))*100","Mensual",10100,"Solicitud",{"v":1,"d":"100%"},"Reporte Mensual de solicitudes de servicios emitido por la Coordinación General de Informática. Página OPD Hospital Civil de Guadalajara sección transparencia","Los proveedores externos de insumos o servicios para el funcionamiento de las tecnologías de la información cumplen."]
[null,null,"Actividad 3.8",null,"Ejecución de servicios de mantenimiento preventivo a equipos para la atención en salud  y operación del hospital.","Total de servicios de Mantenimientos preventivos a equipos","Este indicador mide el mantenimiento preventivo que se realiza a los equipos biomédicos para la atención a pacientes y los equipos para la operación del hospital.","Eficiencia","Gestión","(Servicios de mantenimiento preventivo a equipos (Realizado)/Servicios de mantenimiento preventivo a equipos  (Programado))*100","Mensual",4800,"Servicio",{"v":1,"d":"100%"},"Reporte Mensual de mantenimientos preventivos emitido por la Coordinación General de Servicios Generales. Página OPD Hospital Civil de Guadalajara sección transparencia","El presupuesto autorizado para el hospital es suficiente. Los proveedores de mantenimientos cumplen. Las refacciones y otros insumos necesarios para los mantenimientos están disponibles. La inflación y la paridad del peso con monedas extranjeras se mantiene estable."]
[null,null,"Componente 4",null,"Sistema Institucional de Archivos implementado para el Hospital Civil de Guadalajara","Total de Archivos de Trámite autorizados","Este indicador refleja el número de archivos de trámite autorizados por el Grupo Interdisciplinario para la Gestión Documental y la Administración de Archivos. Para ser autorizado deben cumplir con: registro, acreditación, capacitación y apliquen las herramientas de control archivístico. ","Eficacia","Gestión","(Archivos de trámite autorizados (Realizado) / Archivos de trámite autorizados (Programado)) *100","Anual",40,"Archivo",{"v":1,"d":"100%"},"Acuerdo de autorización del grupo interdisciplinario para la gestión documental y la administración de archivos.","El Gobierno del Estado asigna y el Congreso  aprueba el presupuesto requerido. El Ejecutivo del Estado aprueba la creación de la Coordinación General de Gestión Documental y Administración de Archivos. El Consejo Nacional de Archivos y el archivo general de la nación mantienen los lineamientos y obligaciones vigentes."]
[null,null,"Actividad 4.1",null,"Implementación del Programa Anual de Desarrollo Archivístico (PADA)","Total de actividades del Programa Anual de Desarrollo Archivístico (PADA) realizadas","Este indicador refleja el grado de cumplimiento de las actividades contempladas en el Programa Anual de Desarrollo Archivístico (PADA) aprobado para el ciclo respectivo.","Eficacia","Gestión","(Número de actividades del PADA (Realizado)/Número de actividades del PADA (Programado))*100","Trimestral",30,"Actividad",{"v":1,"d":"100%"},"Reporte Trimestral de las actividades del PADA emitido por la Coordinación General de Gestión Documental y Administración de Archivos.","El Gobierno del Estado asigna y el Congreso aprueban el presupuesto requerido. El Consejo del Estado de Jalisco del Sistema Estatal de Archivos mantiene los lineamientos y obligaciones vigentes."]
[null,null,"Actividad 4.2",null,"Capacitación en gestión documental y administración de archivos","Total de  personas capacitadas en gestión documental y administración de archivos","Este indicador refleja la cantidad de empleados que participan de manera activa en la generación de documentos y/o la administración de expedientes, y que son capacitados en materia de gestión documental y administración de archivos. ","Eficacia","Gestión","(Personas capacitadas en gestión documental y archivos (Realizado) / Personas capacitadas en gestión documental y archivos (Programado))*100","Trimestral",120,"Persona Capacitada",{"v":1,"d":"100%"},"Reporte Trimestral de personas capacitadas emitido por la Coordinación General de Gestión Documental y Administración de Archivos.","Las condiciones sanitarias permiten la capacitación. Se dispone de los instructores por parte del Archivo General de la Nación y otras instancias especializadas que capacitan al personal. "]
[null,null,"Componente 5",null,"Acciones ejecutadas del plan de trabajo para la Igualdad Sustantiva en la Administración Pública.","Total de actividades cumplidas del plan de trabajo de la Unidad de Igualdad de Género","Este indicador refleja el grado de cumplimiento de las actividades contempladas en el plan de trabajo de la Unidad de Igualdad de Género en el ciclo anual respectivo ","Eficacia","Gestión","(Número de actividades del plan de trabajo de la Unidad Igualdad de Género (Realizado)/Número de actividades del plan de trabajo de la Unidad de la Igualdad de Género (Programado)*100","Semestral",28,"Actividad",{"v":1,"d":"100%"},"Reporte Semestral de avances del Plan de Trabajo emitido por la Unidad de Igual de Género. ","El Gobierno del Estado asigna y el Congreso  aprueba el presupuesto requerido. El Ejecutivo del Estado aprueba la creación e integración  de la Unidad de Igualdad de Género en la estructura orgánica de la institución."]
[null,null,"Componente 5",null,"Acciones ejecutadas del plan de trabajo para la Igualdad Sustantiva en la Administración Pública.","Total de personas sensibilizadas en materia de igualdad de género","Este indicador refleja la cantidad de empleados, residentes y estudiantes de pregrado que realizan prácticas profesionales y ciclos clínicos en el hospital, que son sensibilizados en materia de igualdad de género para contribuir a la igualdad sustantiva en la administración pública. la sensibilización puede realizarse mediante: correos electrónicos, redes sociales, publicaciones en medios web instituciones, materiales impresos o pláticas presenciales.","Eficacia","Gestión","(Número de personas sensibilizadas en materia de igualdad de género (Realizado)/Número de personas sensibilizadas en materia de igualdad de género (Programado))*100","Semestral",1020,"Persona",{"v":1,"d":"100%"},"Reporte Semestral de sensibilización al personal emitido por la Unidad de Igual de Género. ","El Gobierno del Estado asigna y el Congreso  aprueba el presupuesto requerido para fortalecer las tecnologías de la información. Las condiciones sanitarias permiten la sensibilización. "]
[null,null,"Actividad 5.1",null,"Implementación del Programa de Cultura Institucional en Igualdad de Género","Total de acciones implementadas del Programa de Cultura Institucional en Igualdad de Género","Este indicador refleja el grado de cumplimiento de las acciones contempladas en el Programa de Cultura de la Unidad de Igualdad de Género en el ciclo anual respectivo ","Eficacia","Gestión","(Número de acciones del Programa de Cultura Institucional de Igualdad de Género (Realizado)/Número de acciones del Programa de Cultura Institucional de Igualdad de Género (Programado))*100","Trimestral",6,"Acción",{"v":1,"d":"100%"},"Reporte Trimestral de avances de acciones del Programa de Cultura emitido por la Unidad de Igualdad de Género","El Gobierno del Estado asigna y el Congreso  aprueba el presupuesto requerido. El Ejecutivo del Estado aprueba la creación e integración  de la Unidad de Igualdad de Género en la estructura orgánica de la institución.  Las condiciones sanitarias permiten la sensibilización. "]
[null,null,"Actividad 5.2",null,"Capacitación en igualdad de genero, derechos humanos, no discriminación y comunicación institucional con lenguaje incluyente, universal y no sexista","Total de personas capacitadas en perspectiva de género","Este indicador refleja la cantidad de empleados, residentes y estudiantes de pregrado que realizan prácticas profesionales y ciclos clínicos en el hospital, que son capacitados con perspectiva de género en materia de derechos humanos, no discriminación y comunicación institucional con lenguaje incluyente, universal y no sexista. ","Eficacia","Gestión","(Personas capacitadas en perspectiva de género (Realizado)/Personas capacitadas en perspectiva de género (Programado))*100","Trimestral",96,"Persona Capacitada",{"v":1,"d":"100%"},"Reporte Trimestral de capacitación emitido por la Unidad de Igualdad de Género.","El Gobierno del Estado asigna y el Congreso  aprueba el presupuesto requerido. El Ejecutivo del Estado aprueba la creación e integración  de la Unidad de Igualdad de Género en la estructura orgánica de la institución.  Las condiciones sanitarias permiten la capacitación. "]
[null,null,"Actividad 5.3",null,"Promoción y difusión de la Unidad de Igualdad de Género","Total de Acciones de promoción y difusión de la Unidad de Igualdad de Género","Este indicador refleja la cantidad de acciones de promoción y difusión de la Unidad de Igualdad de Género mediante correos electrónicos institucionales (@hcg.gob.mx y @mail.udg.hcg.mx).","Eficacia","Gestión","(Acciones de promoción y difusión de la Unidad de Igualdad de Género (Realizado)/Acciones de promoción y difusión de la Unidad de Igualdad de Género (programado))*100","Trimestral",12,"Acción",{"v":1,"d":"100%"},"Reporte Trimestral de Promoción y difusión emitido por la Unidad de Igualdad de Género.","El Gobierno del Estado asigna y el Congreso  aprueba el presupuesto requerido para fortalecer las tecnologías de la información."]
[null,null,"Componente 6",null,"Actos de corrupción o Faltas Administrativas prevenidos o sancionados .","Total de personas capacitadas en prevención de conductas indebidas","Este indicador refleja el porcentaje alcanzado respecto a la meta de las y los servidores públicos del Hospital Civil de Guadalajara capacitados por el Órgano Interno de Control en materia de  prevención de conductas indebidas, sanciones administrativas  y actos de corrupción. Se calcula a través del número alcanzado de personas capacitadas, entre el número programado de personas capacitadas.","Eficiencia","Gestión","(Personas capacitadas en prevención de conductas indebidas (Realizado)/Personas capacitadas en prevención de conductas indebidas (Programado))*100","Semestral",4950,"Persona Capacitada",{"v":1,"d":"100%"},"Reporte Semestral emitido por  el Órgano Interno de Control. Página OPD Hospital Civil de Guadalajara sección transparencia","El personal muestra interés en recibir capacitación en prevención de conductas indebidas."]
[null,null,"Componente 6",null,"Actos de corrupción o Faltas Administrativas prevenidos o sancionados .","Total de visitas de verificación en el programa de auditorias","ste indicador refleja el porcentaje alcanzado respecto a la meta de las visitas de verificación a las áreas clínicas y administrativas relacionadas con las auditorias realizadas por el Órgano Interno de Control.","Eficiencia","Gestión","(Visitas de verificación (Realizada) / Vistas de Verificación (Programado))* 100","Semestral",205,"Visita",{"v":1,"d":"100%"},"Reporte Semestral de vistas de verificación emitido por  el Órgano Interno de Control. Página OPD Hospital Civil de Guadalajara sección transparencia","Las condiciones de salud pública permiten las visitas a las áreas clínicas y administrativas."]
[null,null,"Actividad 6.1",null,"Identificación de probables conductas indebidas","Total de Atención de quejas y denuncias ","Este indicador refleja el porcentaje alcanzado respecto a la meta en la atención de la recepción, identificación y evaluación de las quejas y denuncias recibidas mediante formato con  los elementos necesarios para dar inicio a un proceso de investigación, tanto internas, como externas al Hospital Civil de Guadalajara.  Se calcula a través del número de las quejas y denuncias en formato atendidas,  entre  el número programado de quejas y denuncias en formato recibidas.","Eficiencia","Gestión","(Quejas y denuncias atendidas (Realizada)/Quejas y denuncias atendidas (Programada))*100","Trimestral",190,"Queja",{"v":1,"d":"100%"},"Reporte Trimestral de quejas y denuncias emitido por  el Órgano Interno de Control. Página OPD Hospital Civil de Guadalajara sección transparencia","Los ciudadanos interponen quejas y denuncias. El volumen de las quejas y denuncias se mantiene. La demanda de atención médica para la institución se mantiene. La pandemia de COVID-19 y otras condiciones de salud pública permite el uso de los mecanismos de quejas y denuncias."]
[null,null,"Actividad 6.2",null,"Identificación de probables conductas indebidas.","Total de atenciones de reportes","Este indicador refleja el porcentaje alcanzado respecto a la meta de la atención  a oficios sobre quejas y denuncias, de servidores públicos, usuarios y particulares, con  los elementos necesarios para dar inicio a un proceso de investigación. El resultado se obtiene a través de los reportes atendidos entre los reportes recibidos en el mismo período.","Eficiencia","Gestión","(Reportes atendidos (Realizada)/Reportes atendidos (Programada))*100","Trimestral",113,"Reporte",{"v":1,"d":"100%"},"Reporte Trimestral de atención de reportes  emitido por  el Órgano Interno de Control. Página OPD Hospital Civil de Guadalajara sección transparencia","El volumen de reportes se mantiene."]
[null,null,"Actividad 6.3",null,"Identificación de probables conductas indebidas.","Total de Auditorias","Este indicador refleja el porcentaje alcanzado respecto a la meta de las auditorias iniciadas en el período. Se obtiene a través de las auditorias iniciadas entre las auditorias programadas.","Eficiencia","Gestión","(Auditorias Iniciadas (Realizada)/Auditorias Iniciadas (Programado))*100","Trimestral",11,"Auditoria",{"v":1,"d":"100%"},"Reporte Trimestral de auditorías emitido por  el Órgano Interno de Control. Página OPD Hospital Civil de Guadalajara sección transparencia","Las condiciones de salud pública permiten las visitas de auditoria a las áreas clínicas y administrativas."]
[null,null,"Actividad 6.4",null,"Detección de faltas administrativas y hechos de corrupción.","Total de Procesos de Investigación","Este indicador refleja el porcentaje alcanzado respecto a la meta de las investigaciones iniciadas por el Órgano Interno de Control procedentes de una queja, denuncia o reporte para detectar faltas administrativas o hechos de corrupción. Debido a que el tiempo de duración de una investigación es variable, incluso meses, se incluyen solo las iniciadas. El resultado se obtiene a través de las investigaciones iniciadas entre las investigaciones con elementos de procedencia completos.","Eficiencia","Gestión","(Procesos de investigación Iniciados (Realizadas)/Procesos de investigación Iniciados  (Programada))*100","Trimestral",171,"Proceso",{"v":1,"d":"100%"},"Reporte trimestral de procesos de investigación  emitido por  el Órgano Interno de Control. Página OPD Hospital Civil de Guadalajara sección transparencia","Las condiciones de salud pública permiten las visitas de investigación a las áreas clínicas y administrativas."]
[null,null,"Actividad 6.5",null,"Ejecución de sanciones a responsables de conductas indebidas.","Total de Sanciones por conductas indebidas","Este indicador refleja el porcentaje alcanzado respecto a la meta de las sanciones ejecutadas a los servidores públicos de la institución responsables de conductas indebidas. Se obtiene de las sanciones ejecutadas entre el total de sanciones ejecutables.","Eficiencia","Gestión","(Sanciones ejecutadas (Realizada)/Sanciones ejecutadas (Programada))*100","Trimestral",28,"Sanción",{"v":1,"d":"100%"},"Reporte Trimestral de Sanciones emitido por  el Órgano Interno de Control. Página OPD Hospital Civil de Guadalajara sección transparencia","Se determinan sanciones ejecutables por instancias con la atribución."]
[]
[]
[]
[]
[{"$nulls":4},"I N D I C A D O R E S     157",{"$nulls":12},"P R E S U P U E S T O"]
[{"$nulls":4},"Resumen Narrativo","Nombre del indicador","Definición","Dimensión","Tipo","Método de cálculo","Frecuencia de medición","Meta Valor","Unidad de medida","Meta Porcentual","Medios de verificación","Supuestos","Capítulo 1000","Capítulo 2000","Capítulo 3000","Capítulo 4000","Capítulo 5000","Capítulo 6000","Capítulo 7000","Capítulo 8000","Capítulo 9000"]
[null,null,"Fin"]
[null,null,"Propósito"]
[null,null,"Componente 1",null,"Médicas y médicos especialistas y subespecialistas formados para contribuir a mejorar la salud de la población","Total de Médicas y Médicos del área de la salud formado en posgrado","Este indicador refleja el número de médicxs que cursan un programa de especialidad, subespecialidad o alta especialidad en el Hospital Civil de Guadalajara.","Eficacia","Gestión","(Médicos especialistas formados (Realizado)/Médicos especialistas formados (Programado))*100","Anual",1007,"Médico",{"v":1,"d":"100%"},"Reporte Anual emitido por la Subdirección General de Enseñanza e Investigación. Página OPD Hospital Civil de Guadalajara sección transparencia. ","La Universidad de Guadalajara mantiene vigente y/o sin modificación los programas académicos de especialidad, subespecialidad y alta especialidad. La Secretaría de Salud desarrolla en tiempo y forma los procesos de asignación de residentes. El techo presupuestal para plazas de residencias médicas se mantiene. Las y los aspirantes a especialidad, subespecialidad y alta especialidad médicas seleccionan al Hospital Civil de Guadalajara para su formación."]
[null,null,"Actividad 1.1",null,"Desarrollo de programas educativos de especialidad, subespecialidad y alta especialidad para la formación de recursos humanos  en ciencias de la salud ","Total de médicos estudiantes formados como especialistas","Este indicador refleja el número de médicxs que cursan un programa de especialidad en el Hospital Civil de Guadalajara.","Eficacia","Gestión","(Estudiantes de especialidad (Realizado)/Estudiantes de especialidad (Programado))*100","Trimestral",604,"Estudiante",{"v":1,"d":"100%"},"Reporte Trimestral de Médicos estudiantes de especialidad emitido por la Subdirección General de Enseñanza e Investigación. Página OPD Hospital Civil de Guadalajara sección transparencia. ","La Universidad de Guadalajara mantiene vigente y/o sin modificación los programas académicos de especialidad, subespecialidad y alta especialidad. La Secretaría de Salud desarrolla en tiempo y forma los procesos de asignación de residentes. El techo presupuestal para plazas de residencias médicas se mantiene. Las y los aspirantes a especialidades médica seleccionan al Hospital Civil de Guadalajara para su formación. Las y los residentes continúan su formación durante el período contemplado del programa."]
[null,null,"Actividad 1.2",null,"Desarrollo de programas educativos de especialidad, subespecialidad y alta especialidad para la formación de recursos humanos  en ciencias de la salud ","Total de médicos estudiantes formados como subespecialistas","Este indicador refleja el número de médicxs que cursan un programa de subespecialidad en el Hospital Civil de Guadalajara.","Eficacia","Gestión","(Estudiantes de subespecialidad (Realizado)/Estudiantes de subespecialidad (Programado))*100","Trimestral",384,"Estudiante",{"v":1,"d":"100%"},"Reporte Trimestral de Médicos estudiantes de subespecialidad emitido por la Subdirección General de Enseñanza e Investigación. Página OPD Hospital Civil de Guadalajara sección transparencia. ","La Universidad de Guadalajara mantiene vigente y/o sin modificación los programas académicos de subespecialidad. La Secretaría de Salud desarrolla en tiempo y forma los procesos de asignación de residentes. El techo presupuestal para plazas de residencias médicas se mantiene. Las y los aspirantes a subespecialidades médica seleccionan al Hospital Civil de Guadalajara para su formación. Las y los residentes continúan su formación durante el período contemplado del programa."]
[null,null,"Actividad 1.3",null,"Desarrollo de programas educativos de especialidad, subespecialidad y alta especialidad para la formación de recursos humanos  en ciencias de la salud ","Total de médicos estudiantes formados en alta especialidad","Este indicador refleja el número de médicxs que cursan un programa de alta especialidad en el Hospital Civil de Guadalajara.","Eficacia","Gestión","(Estudiantes de alta especialidad (Realizado)/Estudiantes de alta especialidad (Programado))*100","Trimestral",26,"Estudiante",{"v":1,"d":"100%"},"Reporte Trimestral de Médicos estudiantes de alta especialidad  emitido por la Subdirección General de Enseñanza e Investigación. Página OPD Hospital Civil de Guadalajara sección transparencia. ","La Universidad de Guadalajara mantiene vigente y/o sin modificación los programas académicos de alta especialidad.  Las y los aspirantes a  alta especialidad médica seleccionan al Hospital Civil de Guadalajara para su formación. Las y los residentes continúan su formación durante el período contemplado del programa. Se mantiene estable la economía del país."]
[null,null,"Actividad 1.4",null,"Generación de conferencias y cursos de capacitación para la actualización del personal adscrito y externos al Hospital Civil de Guadalajara","Total de asistentes a conferencias y cursos de capacitación","Este indicador refleja el número de inscritos al CIAM, CIENF, CICOM; así como  cursos y conferencias de capacitación organizados por la Subdirección General de Enseñanza e Investigación del Hospital","Eficacia","Gestión","(Asistentes a cursos, conferencias y congresos organizados por la institución(Realizado)/Asistentes a cursos, conferencias y congresos organizados por la institución (Programado))*100","Trimestral",6800,"Asistente",{"v":1,"d":"100%"},"Reporte Trimestral de Asistentes a cursos de capacitación emitido por la Subdirección General de Enseñanza e Investigación. Página OPD Hospital Civil de Guadalajara sección transparencia. ","Las condiciones sanitarias vigentes en el estado permiten la generación de conferencias y cursos de capacitación. La economía del país se mantiene estable durante  el periodo. Se mantiene el interés de las y los profesionales de la salud en asistir a conferencias, cursos y congresos organizados por la institución."]
[null,null,"Actividad 1.5",null,"Fortalecimiento de convenios de vinculación y extensión académica interinstitucional con pertinencia social","Total de estudiantes en movilidad académica","Este indicador mide el total estudiantes de pregrado o posgrado que rotan entre el Hospital Civil de Guadalajara y otras  instituciones para complementar su formación.","Eficacia","Gestión","(Estudiantes en movilidad académica (Realizado)/Estudiantes en movilidad académica (Programado))*100","Trimestral",30,"Estudiante",{"v":1,"d":"100%"},"Reporte Trimestral de estudiantes en movilidad académica emitido por la Subdirección General de Enseñanza e Investigación. Página OPD Hospital Civil de Guadalajara sección transparencia. ","Las instituciones mantienen y/o generan convenios de vinculación y extensión interinstitucional con el Hospital Civil de Guadalajara. Las condiciones sanitarias vigentes permiten la materialización de convenios de vinculación y extensión interinstitucional."]
[null,null,"Componente 2",null,"Trabajos de investigación realizados","Total de investigaciones realizadas","Este indicador cuantifica el número de tesis de posgrado, artículos publicados, así como,  resúmenes de trabajos libres presentados y publicados en las memorias de los congresos organizados por el Hospital Civil de Guadalajara","Eficacia","Gestión","(Investigaciones realizadas (Realizado)/Investigaciones realizadas (Programado))*100","Semestral",400,"investigación",{"v":1,"d":"100%"},"Reporte Semestral de  investigaciones realizadas emitido por la Subdirección General de Enseñanza e Investigación. Página OPD Hospital Civil de Guadalajara sección transparencia. ","Las universidades mantienen vigentes o sin modificación los programas académicos de posgrado o convenios del hospital. Las condiciones sanitarias vigentes en el Estado permiten desarrollar las investigaciones. Las y los estudiantes de posgrado concluyen su formación. Se mantiene estable la economía del país. Los estímulos y el  financiamiento público o privado para la investigación se mantienen. "]
[null,null,"Actividad 2.1",null,"Promoción y difusión de las investigaciones científicas en el Hospital Civil de Guadalajara","Total de sesiones de promoción a  la investigación","Este indicador mide las sesiones realizadas por el Comité de Investigación en las que promueve y difunde las acciones realizadas de investigaciones en el Hospital Civil de Guadalajara.","Eficacia","Gestión","(Sesiones de promoción a la investigación (Realizado)/Sesiones de promoción a la investigación  (Programado))*100","Trimestral",48,"Sesión",{"v":1,"d":"100%"},"Reporte Trimestral de sesiones y promoción de investigación emitido por la Subdirección General de Enseñanza e Investigación. Página OPD Hospital Civil de Guadalajara sección transparencia. ","Las instancias gubernamentales e iniciativa privada impulsan la investigación científica. Las condiciones sanitarias vigentes en el Estado permiten desarrollar las sesiones. Se mantiene estable la economía del país."]
[null,null,"Actividad 2.2",null,"Investigaciones científicas en el Hospital Civil de Guadalajara registradas","Total de investigaciones registradas","Este indicador mide los protocolos de investigación registrados en la Coordinación de Investigación del Hospital.","Eficacia","Gestión","(Investigaciones registradas (Realizada)/Investigaciones registradas (Programado))*100","Trimestral",1390,"Investigación",{"v":1,"d":"100%"},"Reporte Trimestral de investigaciones registradas emitido por la Subdirección General de Enseñanza e Investigación. Página OPD Hospital Civil de Guadalajara sección transparencia. ","Las universidades mantienen vigentes o sin modificación los programas académicos de posgrado o convenios del hospital. Las condiciones sanitarias vigentes en el Estado permiten desarrollar las sesiones. Los estímulos y el  financiamiento público o privado para la investigación se mantienen.  Se mantiene estable la economía del país."]
[null,null,"Componente 3",null,"Estudiantes internos de pregrado, prestadores de servicio social  y estudiantes de prácticas profesionales y ciclos clínicos de pregrado formados. ","Total de estudiantes internos de pregrado","este indicador refleja el número de médicxs preinternxs o internxs de pregrado; así como prestadores de servicio social, alumnxs de prácticas profesionales y ciclos clínicos de pregrado de ciencias de la salud y afines, que cursan una parte de su formación clínica en el Hospital Civil de Guadalajara.","Eficacia","Gestión","(Estudiantes de pregrado (Realizado)/Estudiantes de pregrado (Programado))*100","Semestral",1745,"Estudiante",{"v":1,"d":"100%"},"Reporte Semestral de Estudiantes de pregrado emitido por la Subdirección General de Enseñanza e Investigación. Página OPD Hospital Civil de Guadalajara sección transparencia. ","Las universidades mantienen vigentes o sin modificación los programas académicos de pregrado o convenios con el hospital. Las universidades desarrollan en tiempo y forma los procesos de asignación de preinternos.  La Secretaría de Salud desarrolla en tiempo y forma los procesos de asignación de internos. El techo presupuestal para plazas de internado de pregrado se mantiene. Las y los aspirantes a preinternado e internado  seleccionan al Hospital Civil de Guadalajara para su formación."]
[null,null,"Actividad 3.1",null,"Implementación  de programa operativo de internado de pregrado y de servicio social","Total de Médicos internos de pregrado ","Este indicador refleja el número de médicxs que cursan el internado de pregrado  en el Hospital Civil de Guadalajara. ","Eficacia","Gestión","(Médicos internos de pregrado (Realizado)/Médicos internos de pregrado (Programado))*100","Trimestral",700,"Médico",{"v":1,"d":"100%"},"Reporte Trimestral de médicos internos de pregrado emitido por la Subdirección General de Enseñanza e Investigación.  Página OPD Hospital Civil de Guadalajara sección transparencia. ","Las universidades mantienen vigentes o sin modificación los programas académicos de la licenciatura en medicina o convenios con el hospital.  La Secretaría de Salud desarrolla en tiempo y forma los procesos de asignación de internos. El techo presupuestal para plazas de internado de pregrado se mantiene. Las y los aspirantes a internado seleccionan al Hospital Civil de Guadalajara para su formación.  Las y los internos continúan su formación durante el período contemplado del programa."]
[null,null,"Actividad 3.2",null,"Implementación  de programa operativo de internado de pregrado y de servicio social","Total de prestadores de servicio social ","Este indicador refleja el número de  pasantes que prestan su servicio social  en el Hospital Civil de Guadalajara. ","Eficacia","Gestión","(Prestadores de servicio social (Realizado)/Prestadores de servicio social (Programado))*100","Trimestral",575,"Prestador de servicios",{"v":1,"d":"100%"},"Reporte Trimestral de prestadores de servicio emitido por la Subdirección General de Enseñanza e Investigación.  Página OPD Hospital Civil de Guadalajara sección transparencia. ","Las universidades mantienen vigentes o sin modificación los programas académicos de pregrado o convenios con el hospital.  La Secretaría de Salud y las universidades desarrollan en tiempo y forma los procesos de asignación de pasantes. El techo presupuestal para plazas de pasantes en servicio social se mantiene. Las y los aspirantes a servicio social seleccionan al Hospital Civil de Guadalajara para prestar su servicio.  Las y los pasantes en servicio social cumplen el período contemplado del programa. Las condiciones sanitarias vigentes en el Estado permiten la prestación del servicio social."]
[null,null,"Actividad 3.3",null,"Implementación de programas operativos de prácticas profesionales, y ciclos clínicos de pregrado ","Total de estudiantes en programas operativos de ciclos clínicos de pregrado ","Este indicador refleja el número de estudiantes de medicina  que cursan un ciclo clínico previo al internado  en el Hospital Civil de Guadalajara. (preinternos)","Eficacia","Gestión","(Estudiantes en ciclos clínicos de pregrado (Realizado)/Estudiantes en ciclos clínicos de pregrado (Programado))*100","Trimestral",230,"Estudiante",{"v":1,"d":"100%"},"Reporte Trimestral de estudiantes en programas operativos de ciclos clínicos de pregrado emitido por la Subdirección General de Enseñanza e Investigación.  Página OPD Hospital Civil de Guadalajara sección transparencia. ","Las universidades mantienen vigentes o sin modificación los programas académicos de la licenciatura en medicina o convenios con el hospital. Las universidades desarrollan en tiempo y forma los procesos de asignación de preinternos.  Las y los estudiantes de medicina en ciclos clínicos de pregrado seleccionan al Hospital Civil de Guadalajara para su formación. Las y los estudiantes de medicina en ciclos clínicos de pregrados continúan su formación durante el período contemplado. Las condiciones sanitarias vigentes en el Estado permiten desarrollar los ciclos clínicos de pregrado."]
[null,null,"Actividad 3.4",null,"Implementación de programas operativos de prácticas profesionales, y ciclos clínicos de pregrado ","Total de estudiantes en programas operativos de prácticas profesionales.","Este indicador refleja el número de estudiantes de pregrado, excepto medicina,  que realizan prácticas profesionales en el Hospital Civil de Guadalajara. ","Eficacia","Gestión","(Estudiantes en programas operativos de prácticas profesionales (Realizado)/Estudiantes en programas operativos de prácticas profesionales (Programados))*100","Trimestral",240,"Estudiante",{"v":1,"d":"100%"},"Reporte Trimestral de estudiantes en programas operativos de prácticas profesionales emitido por la Subdirección General de Enseñanza e Investigación.  Página OPD Hospital Civil de Guadalajara sección transparencia. ","Las universidades mantienen vigentes o sin modificación los programas académicos de pregrado o convenios con el hospital. Las universidades desarrollan en tiempo y forma los procesos de asignación de alumnos en prácticas profesionales.  Las y  los estudiantes en prácticas profesionales seleccionan al Hospital Civil de Guadalajara para su formación. Las y los alumnos en prácticas profesionales continúan su formación durante el período contemplado. Las condiciones sanitarias vigentes en el Estado permiten desarrollar las prácticas profesionales."]

{"sheet":"SinMatriz","index":3,"n_rows":5,"n_cols":50,"rows_kept":5,"merged":[[2,1,2,14]]}
[]
[]
["Ente Fiscalizable"]
[]
["No. ",null,"Denominación del programa","Objetivo","Nombre del indicador","Definición del indicador","Dimensión","Tipo de Indicador","Método de cálculo","Valor programado 1 (Numerador)","Valor programado 2 (Denominador)","Frecuencia de medición del indicador","Unidad de medida del indicador","Meta","Unidad responsable OPD","Alineación con objetivos superiores del PND","Alineación con objetivos secundarios del PND","Alineación con objetivos superiores del PED","Alineación con objetivos secundarios del PED","Capítulo 1000","Capítulo 2000","Capítulo 3000","Capítulo 4000","Capítulo 5000","Capítulo 6000","Capítulo 7000","Capítulo 8000","Capítulo 9000","Avance 1er Semestre del Valor programado 1 (Numerador)","Avance 1er Semestre del Valor programado 2 (Denominador)","Avance Anual del Valor programado 1 (Numerador)","Avance Anual del Valor programado 2 (Denominador)","Avance 1er Semestre del Capítulo 1000","Avance 1er Semestre del Capítulo 2000","Avance 1er Semestre del Capítulo 3000","Avance 1er Semestre del Capítulo 4000","Avance 1er Semestre del Capítulo 5000","Avance 1er Semestre del Capítulo 6000","Avance 1er Semestre del Capítulo 7000","Avance 1er Semestre del Capítulo 8000","Avance 1er Semestre del Capítulo 9000","Avance Anual del Capítulo 1000","Avance Anual del Capítulo 2000","Avance Anual del Capítulo 3000","Avance Anual del Capítulo 4000","Avance Anual del Capítulo 5000","Avance Anual del Capítulo 6000","Avance Anual del Capítulo 7000","Avance Anual del Capítulo 8000","Avance Anual del Capítulo 9000"]

{"sheet":"Avances","index":4,"n_rows":109,"n_cols":21,"rows_kept":109,"merged":[[1,21,3,21],[5,1,5,2],[6,1,6,2],[7,1,7,2],[8,1,8,2],[9,1,9,2],[9,21,10,21],[10,1,10,2],[12,3,12,8],[12,9,12,19],[16,11,17,11],[16,12,17,12],[16,13,17,13],[16,14,17,14],[16,15,17,15],[16,16,17,16],[32,11,35,11],[32,12,35,12],[32,13,35,13],[32,14,35,14],[32,15,35,15],[32,16,35,16],[44,3,44,8],[44,9,44,19],[75,11,76,11],[80,11,81,11],[91,3,91,8],[91,9,91,19]]}
[null,null,1]
[null,null,1]
[null,null,"REPORTE DE AVANCES PARA MATRIZ DE INDICADORES PARA RESULTADOS POR PROGRAMA "]
[null,null,1,null,"A V A N C E      S E M E S T R A L"]
[null,null,1]
[null,"Ente Fiscalizable",null,"OPD Hospital Civil de Guadalajara"]
[null,"Denominación del Programa 909",null,"909 - Servicios Integrales de Especialidad y Alta Especialidad a nuestra Población Usuaria."]
[null,"Denominación del Programa 903",null,"903 - Fortalecimiento de la gestión Institucional para la Operación del Hospital Civil de Guadalajara."]
[null,"Denominación del Programa 157",null,"157 - Formación de recursos humanos para la salud y generación de conocimiento científico"]
[null,"Unidad Responsable/OPD",null,"O.P.D. Hospital Civil de Guadalajara"]
[null,"Periodo que se reporta",null,"SEMESTRAL"]
[null,null,1]
[null,null,1,"I N D I C A D O R E S    909",{"$nulls":5},"A V A N C E S"]
[null,null,"Nivel","Resumen Narrativo","Nombre del indicador","Método de cálculo","Frecuencia de medición","Meta Valor Anual","Meta Porcentual","Avance Meta Valor Semestral","Avance Meta Porcentual","Avance del Capítulo 1000","Avance del Capítulo 2000","Avance del Capítulo 3000","Avance del Capítulo 4000","Avance del Capítulo 5000","Avance del Capítulo 6000","Avance del Capítulo 7000","Avance del Capítulo 8000","Avance del Capítulo 9000","Observaciones"]
[{"$f":"$D$6","v":"OPD Hospital Civil de Guadalajara"},{"$f":"$D$7","v":"909 - Servicios Integrales de Especialidad y Alta Especialidad a nuestra Población Usuaria."},"Fin"]
["OPD Hospital Civil de Guadalajara","909 - Servicios Integrales de Especialidad y Alta Especialidad a nuestra Población Usuaria.","Propósito"]
["OPD Hospital Civil de Guadalajara",null,"Componente 1","Atenciones médicas de Especialidad y Alta Especialidad otorgadas en servicios de  urgencias, consulta externa, obstetricia, cirugía, y hospitalización.","Total de Atenciones médicas otorgadas","(Atenciones médicas (Realizado)/Atenciones médicas (Programado))*100","Mensual",722328,{"v":1,"d":"100%"},340867,{"$f":"J17/H17","v":{"v":0.4719005770231806,"d":"47%"}},{"v":1456860500.36,"d":"1,456,860,500.36"},{"v":275614782.58,"d":"275,614,782.58"},{"v":52966936.550000034,"d":"52,966,936.55"},0,{"v":56943244.48,"d":"56,943,244.48"},{"v":17345739.549999997,"d":"17,345,739.55"}]
["OPD Hospital Civil de Guadalajara",null,"Componente 1","Atenciones médicas de Especialidad y Alta Especialidad otorgadas en servicios de  urgencias, consulta externa, obstetricia, cirugía, y hospitalización.","Porcentaje de encuestados satisfechos con la atención","(Porcentaje de encuestados con calificación igual o mayor a 80 (Realizado)/ Porcentaje de encuestados con calificación igual o mayor a 80 (Programado))*100","Mensual",91,{"v":1,"d":"100%"},84.11500000000001,{"$f":"J18/H18","v":{"v":0.9243406593406595,"d":"92%"}},{"$nulls":9},"Este indicador se refieren al porcentaje de la calificación obtenida en el período sobre la satisfacción del usuario, no refleja el alcance de la meta final, la interpretación se puede encontrar en el Informe Anual de Desempeño en la Gestión."]
["OPD Hospital Civil de Guadalajara",null,"Actividad 1.1","Atención integral a pacientes Hospitalizados.","Total de Egresos Hospitalarios","(Egresos hospitalarios (Realizado)/Egresos hospitalarios (Programado))*100","Mensual",64680,{"v":1,"d":"100%"},29803,{"$f":"J19/H19","v":{"v":0.4607761286332715,"d":"46.1%"}}]
["OPD Hospital Civil de Guadalajara",null,"Actividad 1.2","Otorgamiento de Consultas externas","Total de Consultas Externas","(Consultas Externas (Realizado)/Consultas Externas (Programado))*100","Mensual",475008,{"v":1,"d":"100%"},243104,{"$f":"J20/H20","v":{"v":0.5117892751279979,"d":"51.2%"}}]
["OPD Hospital Civil de Guadalajara",null,"Actividad 1.3","Realizar procedimientos quirúrgicos","Total de Cirugías","(Cirugías realizadas (Realizado)/Cirugías realizadas (Programado))*100","Mensual",40800,{"v":1,"d":"100%"},19397,{"v":0.47541666666666665,"d":"47.5%"}]
["OPD Hospital Civil de Guadalajara",null,"Actividad 1.4","Atención integral a las urgencias médicas","Total de Urgencias","(Urgencias atendidas (Realizado)/Urgencias atendidas (Programado))*100","Mensual",102000,{"v":1,"d":"100%"},45292,{"v":0.4440392156862745,"d":"44.4%"}]
["OPD Hospital Civil de Guadalajara",null,"Actividad 1.5","Atención a pacientes obstétricas","Total de Nacimientos","(Nacimientos (Realizado)/Nacimientos (Programado))*100","Mensual",6990,{"v":1,"d":"100%"},3281,{"v":0.4693848354792561,"d":"46.9%"}]
[null,null,"Actividad 1.15","Atención Integral a Pacientes con COVID-19","Total de Valoraciones a pacientes con sospecha de COVID","(Número de Valoraciones a pacientes con sospecha de COVID (Realizada) / Número de Valoraciones a pacientes con sospecha de COVID (Programado)) * 100","Mensual",10700,{"v":1,"d":"100%"},5645,{"v":0.5275700934579439,"d":"52.8%"}]
[null,null,"Actividad 1.16","Atención Integral a Pacientes con COVID-19","Total de Egresos del Área COVID","(Egresos área COVID (Realizado) / Egresos área COVID (Programado))*100","Mensual",1800,{"v":1,"d":"100%"},705,{"v":0.39166666666666666,"d":"39.2%"}]
["OPD Hospital Civil de Guadalajara",null,"Componente 2","Atención  y educación otorgada en programas de prevención, promoción y difusión en salud.","Total de Personas Beneficiadas directas por Acciones Preventivas","(Personas Beneficiadas directas por Acciones Preventivas (Realizado)/Beneficiados directos por Acciones Preventivas (Programado))*100","Mensual",53000,{"v":1,"d":"100%"},28808,{"v":0.5435471698113208,"d":"54.4%"},{"v":8335879.9,"d":"8,335,879.90"},{"v":5766469.1400000015,"d":"5,766,469.14"}]
["OPD Hospital Civil de Guadalajara",null,"Actividad 2.1","Aplicación de vacunas","Total de Vacunas aplicadas","(Dosis de vacunas aplicadas (Realizado)/Dosis de vacunadas aplicadas (Programado))*100","Mensual",24900,{"v":1,"d":"100%"},12239,{"v":0.4915261044176707,"d":"49.2%"}]
["OPD Hospital Civil de Guadalajara",null,"Actividad 2.2","Detección oportuna de enfermedades.","Total de personas beneficiadas por acciones de detección oportuna de enfermedades ","(Personas beneficiadas en acciones de detección oportuna de enfermedades (Realizados) / Personas atendidas en campañas de detección oportuna de enfermedades (Programados)) *100","Mensual",30600,{"v":1,"d":"100%"},16269,{"v":0.5316666666666666,"d":"53.2%"}]
["OPD Hospital Civil de Guadalajara",null,"Actividad 2.3","Realización de acciones de promoción a la salud","Total de Acciones de promoción a la salud","(Acciones de promoción a la salud (Realizado) / Acciones de promoción a la salud (Programado))*100","Mensual",57300,{"v":1,"d":"100%"},30530,{"v":0.5328097731239092,"d":"53.3%"}]
["OPD Hospital Civil de Guadalajara",null,"Componente 3","Infraestructura y equipamiento realizadas para Hospitales Civiles","Total de áreas construidas o rehabilitadas","(Número de áreas construidas o rehabilitadas (Realizado)/Número de áreas construidas o rehabilitada (Programado))*100","Anual",1,{"v":1,"d":"100%"},0,{"v":0,"d":"0.0%"},{"$nulls":9},"Este indicador reporta un avance de cero (0) debido a que su medición es anual, la interpretación se puede encontrar en el Informe Anual de Desempeño en la Gestión."]
["OPD Hospital Civil de Guadalajara",null,"Componente 3","Ejecución del ejercicio financiero en obra","Total del recurso económico ejercido en obra","(Número de Recursos financieros ejercido en obra (realizado)/Número de Recursos financieros ejercido en obra  (programado))*100","Mensual",40002321,{"v":1,"d":"100%"},12934708.69,{"v":0.32334895492689036,"d":"32.3%"}]
["OPD Hospital Civil de Guadalajara",null,"Actividad 3.1","Ejecución de obra","Porcentaje de ejecución de obra","(Porcentaje de avance de obra (realizado) / Porcentaje de  avance de obra  (programado))*100\n","Mensual",100,{"v":1,"d":"100%"},17.481,{"v":0.17481000000000002,"d":"17.5%"}]
["OPD Hospital Civil de Guadalajara",null,"Componente 4","Atenciones médicas otorgadas a recién nacidos niñas y niños en la Unidad de Cuidados Intensivos Neonatales (UCIN) para promover el desarrollo infantil temprano y prevenir muertes infantiles.","Total de Altas de la Unidad de Cuidados Intensivos Neonatales","(Alta de UCIN (Realizado / Alta de UCIN (Programado))*100","Mensual",1200,{"v":1,"d":"100%"},592,{"v":0.49333333333333335,"d":"49.3%"},{"v":20911635.24,"d":"20,911,635.24"},{"v":20227506.740000017,"d":"20,227,506.74"},{"v":2119975.5599999996,"d":"2,119,975.56"}]
["OPD Hospital Civil de Guadalajara",null,"Componente 4","Atenciones médicas otorgadas a recién nacidos niñas y niños en la Unidad de Cuidados Intensivos Neonatales (UCIN) para promover el desarrollo infantil temprano y prevenir muertes infantiles.","Porcentaje de mortalidad en la Unidad de Cuidados Intensivos Neonatales","(Porcentaje de mortalidad en UCIN (Realizado) /Porcentaje de mortalidad en UCIN (Programado))*100","Semestral",32,{"v":1,"d":"100%"},14.000000000000002,{"v":0.43750000000000006,"d":"43.8%"},{"$nulls":9},"En este indicador la meta porcentual es de medición semestral y mide la disminución de la mortalidad, el avance debe mantenerse por debajo de la meta anual, la interpretación se puede encontrar en el Informe Anual de Desempeño en la Gestión."]
["OPD Hospital Civil de Guadalajara",null,"Componente 4","Atenciones médicas otorgadas a recién nacidos niñas y niños en la Unidad de Cuidados Intensivos Neonatales (UCIN) para promover el desarrollo infantil temprano y prevenir muertes infantiles.","Porcentaje de encuestados satisfechos con la atención de la Unidad de Cuidados Intensivos Neonatales  a niñas recién nacidas","(Porcentaje de encuestados con calificación igual o mayor a 80  en la atención en UCIN a niñas recién nacidas  (Realizado)/Porcentaje de encuestados con calificación igual o mayor a 80  en la atención en UCIN de niñas recién nacidas (Programado))*100","Mensual",90,{"v":1,"d":"100%"},100,{"v":1.1111111111111112,"d":"111.1%"},{"$nulls":9},"Este indicador se refieren al porcentaje de la calificación obtenida en el período sobre la satisfacción del usuario, no refleja el alcance de la meta final, la interpretación se puede encontrar en el Informe Anual de Desempeño en la Gestión."]
["OPD Hospital Civil de Guadalajara",null,"Componente 4","Atenciones médicas otorgadas a recién nacidos niñas y niños en la Unidad de Cuidados Intensivos Neonatales (UCIN) para promover el desarrollo infantil temprano y prevenir muertes infantiles.","\nPorcentaje de encuestados satisfechos con la atención de la Unidad de Cuidados Intensivos Neonatales  a niños recién nacidos","(Porcentaje de encuestados con calificación igual o mayor a 80  en la atención  en UCIN a niños recién nacidos (Realizado) / porcentaje de encuestados con calificación igual o mayor a 80  en la atención en UCIN de niños recién nacidos  (Programado))*100","Mensual",90,{"v":1,"d":"100%"},100,{"v":1.1111111111111112,"d":"111.1%"},{"$nulls":9},"Este indicador se refieren al porcentaje de la calificación obtenida en el período sobre la satisfacción del usuario, no refleja el alcance de la meta final, la interpretación se puede encontrar en el Informe Anual de Desempeño en la Gestión."]
["OPD Hospital Civil de Guadalajara",null,"Actividad 4.1","Prevención del dolor ","Total de pacientes  Beneficiados de medidas preventivas de dolor en la Unidad de Cuidados Intensivos Neonatales                  ","(Pacientes que reciben medidas preventivas de dolor (realizadas) / Pacientes que reciben medidas preventivas de dolor (programadas))*100","Mensual",1200,{"v":1,"d":"100%"},592,{"v":0.49333333333333335,"d":"49.3%"}]
["OPD Hospital Civil de Guadalajara",null,"Actividad 4.2","Promoción a la lactancia materna.","Total de pacientes niñas y niños en la Unidad de Cuidados Intensivos Neonatales alimentados con leche materna    ","(Pacientes que reciben alimentación con leche materna(realizadas) / Pacientes que reciben alimentación con leche materna (programados))*100","Mensual",1200,{"v":1,"d":"100%"},559,{"v":0.4658333333333333,"d":"46.6%"}]
["OPD Hospital Civil de Guadalajara",null,"Actividad 4.1","Capacitación en lactancia materna a los padres de recién nacidos hospitalizados ","Total de personas beneficiadas de asesoría en lactancia materna en usuarios de la Unidad de Cuidados Intensivos Neonatales                    ","(Personas beneficiadas de asesoría en lactancia materna (realizadas) / Personas beneficiadas de asesoría en lactancia materna (programados))*100","Mensual",2440,{"v":1,"d":"100%"},924,{"v":0.37868852459016394,"d":"37.9%"}]
[]
[]
[]
[]
[]
[null,null,1,"I N D I C A D O R E S     903",{"$nulls":5},"A V A N C E S"]
[null,null,"Nivel","Resumen Narrativo","Nombre del indicador","Método de cálculo","Frecuencia de medición","Meta Valor Anual","Meta Porcentual","Avance Meta Valor Semestral","Avance Meta Porcentual","Avance del Capítulo 1000","Avance del Capítulo 2000","Avance del Capítulo 3000","Avance del Capítulo 4000","Avance del Capítulo 5000","Avance del Capítulo 6000","Avance del Capítulo 7000","Avance del Capítulo 8000","Avance del Capítulo 9000","Observaciones"]
[{"$f":"$D$6","v":"OPD Hospital Civil de Guadalajara"},{"$f":"$D$7","v":"909 - Servicios Integrales de Especialidad y Alta Especialidad a nuestra Población Usuaria."},"Fin"]
["OPD Hospital Civil de Guadalajara","909 - Servicios Integrales de Especialidad y Alta Especialidad a nuestra Población Usuaria.","Propósito"]
["OPD Hospital Civil de Guadalajara",null,"Componente 1","Atención y capacitación proporcionados en materia de Transparencia, acceso a la información,  protección de datos y mejora regulatoria","Total de Acciones en transparencia, acceso a la información, protección de datos y mejora regulatoria. ","(Acciones de transparencia, acceso a la información, protección de datos y mejora regulatoria (Realizada)/Acciones  de transparencia, acceso a la información, protección de datos y mejora regulatoria (Programado))*100","Semestral",7000,{"v":1,"d":"100%"},4550,{"$f":"J49/H49","v":{"v":0.65,"d":"65%"}},{"v":2880488.43,"d":"2,880,488.43"}]
["OPD Hospital Civil de Guadalajara",null,"Actividad 1.1","Atención y capacitación en materia de transparencia y acceso a la información","Total de Solicitudes de acceso a la información pública y acceso a datos personales","(Solicitudes de acceso a la información pública y datos personales atendidas (Realizado)/ Solicitudes de acceso a la información pública y datos personales atendidas (Programado))*100","Mensual",3720,{"v":1,"d":"100%"},2149,{"$f":"J50/H50","v":{"v":0.5776881720430107,"d":"58%"}}]
["OPD Hospital Civil de Guadalajara",null,"Actividad 1.2","Atención y capacitación en materia de transparencia y acceso a la información","Total personas capacitadas en materia de transparencia y acceso a la información ","(Personas capacitadas en transparencia y acceso a la información (Realizado)/ Personas capacitadas en transparencia y acceso a la información (Programado))*100","Trimestral",1500,{"v":1,"d":"100%"},852,{"$f":"J51/H51","v":{"v":0.568,"d":"56.8%"}}]
["OPD Hospital Civil de Guadalajara",null,"Actividad 1.3","Atención y capacitación en materia de transparencia y acceso a la información","Total de Recursos de revisión","(Recursos de revisión resueltos (Realizado)/Recursos de revisión resueltos (Programado)*100","Trimestral",24,{"v":1,"d":"100%"},7,{"v":0.2916666666666667,"d":"29.2%"}]
["OPD Hospital Civil de Guadalajara",null,"Actividad 1.4","Atención y capacitación en materia de protección de datos personales","Total personas capacitadas en protección de datos personales","(Personas capacitadas en protección de datos personales (Realizado)/Personas capacitadas en protección de datos personales (Programado))*100","Trimestral",1500,{"v":1,"d":"100%"},852,{"$f":"J53/H53","v":{"v":0.568,"d":"56.8%"}}]
["OPD Hospital Civil de Guadalajara",null,"Actividad 1.5","Gestión en mejora regulatoria","Porcentaje de Información fundamental","(Porcentaje de elementos de información fundamental publicados (Realizado)/Porcentaje de elementos de información fundamental publicados (Programado))*100","Trimestral",100,{"v":1,"d":"100%"},100,{"v":1,"d":"100.0%"}]
["OPD Hospital Civil de Guadalajara",null,"Actividad 1.6","Gestión en mejora regulatoria","Porcentaje de Obligaciones de Transparencia comunes","(Porcentaje de formatos de Plataforma Nacional de Transparencia publicados (Realizado)/Porcentaje de  formatos de Plataforma Nacional de Transparencia publicados (Programado))*100","Trimestral",100,{"v":1,"d":"100%"},100,{"v":1,"d":"100.0%"}]
["OPD Hospital Civil de Guadalajara",null,"Componente 2","Actividades consultivas de carácter administrativo y de representación jurisdiccional ejecutadas","Total de Actividades jurídicas","(Actividades consultivas de carácter administrativo y de representación jurisdiccional (Realizado)/Actividades consultivas de carácter administrativo y de representación jurisdiccional (Programado))*100","Semestral",11842,{"v":1,"d":"100%"},6024,{"$f":"J56/H56","v":{"v":0.5086978550920452,"d":"51%"}},{"v":8077683.8,"d":"8,077,683.80"}]
["OPD Hospital Civil de Guadalajara",null,"Actividad 2.1","Revisión y/o elaboración de instrumentos jurídicos con terceros","Total de Instrumentos Jurídicos","(Instrumentos jurídicos revisados y elaborados (Realizado)/Instrumentos jurídicos revisados y elaborados (Programado))*100","Trimestral",225,{"v":1,"d":"100%"},113,{"v":0.5022222222222222,"d":"50.2%"}]
["OPD Hospital Civil de Guadalajara",null,"Actividad 2.2","ntegración de procedimientos administrativos de investigación laboral","Total de Investigaciones laborales","(Investigaciones laborales iniciadas (Realizado)/Investigaciones laborales iniciadas (Programado))*100","Trimestral",145,{"v":1,"d":"100%"},68,{"v":0.4689655172413793,"d":"46.9%"}]
["OPD Hospital Civil de Guadalajara",null,"Actividad 2.3","Colaboración jurisdiccional con dependencias estatales y federales","Total de Procesos de colaboración jurídica interinstitucional","(Procesos de gestión de información jurídica colaborativa (Realizado)/Procesos de gestión de información jurídica colaborativa  Programado))*100","Mensual",9000,{"v":1,"d":"100%"},3909,{"v":0.43433333333333335,"d":"43.4%"}]
["OPD Hospital Civil de Guadalajara",null,"Actividad 2.4","Representación en acciones jurisdiccionales que involucran los intereses legales del Hospital Civil de Guadalajara","Total de Juicios iniciados","(Representaciones en juicios iniciados (Realizado)/Representaciones en juicios iniciados (Programado))*100","Trimestral",45,{"v":1,"d":"100%"},18,{"v":0.4,"d":"40.0%"}]
[{"$f":"$D$6","v":"OPD Hospital Civil de Guadalajara"},{"$f":"$D$7","v":"909 - Servicios Integrales de Especialidad y Alta Especialidad a nuestra Población Usuaria."},"Actividad 2.5","Celebración de contratos derivados de una licitación y penalización de incumplimientos","Total de Contratos licitatorios","(Contratos licitatorios celebrados (Realizado)/Contratos licitatorios celebrados (Programado))*100","Trimestral",935,{"v":1,"d":"100%"},530,{"v":0.5668449197860963,"d":"56.7%"}]
["OPD Hospital Civil de Guadalajara","909 - Servicios Integrales de Especialidad y Alta Especialidad a nuestra Población Usuaria.","Actividad 2.6","Celebración de contratos derivados de una licitación y penalización de incumplimientos","Total de sanciones a proveedores","(Sanciones a proveedores (Realizado)/Sanciones a proveedores (Programado))*100","Trimestral",2950,{"v":1,"d":"100%"},1343,{"v":0.4552542372881356,"d":"45.5%"}]
[null,null,"Actividad 2.7","Dictaminación de la normatividad institucional","Total de Dictámenes de leyes, normas o reglamentos","(Leyes, normas o reglamentos dictaminados (Realizado)/Leyes, normas o reglamentos dictaminados (Programado))*100","Trimestral",125,{"v":1,"d":"100%"},47,{"v":0.376,"d":"37.6%"}]
["OPD Hospital Civil de Guadalajara",null,"Componente 3","Proyectos, acciones y programas públicos gestionados, desarrollados, ejecutados y evaluados alineados al Plan institucional, Plan Estatal de Gobernanza y Plan Nacional de Desarrollo para el fortalecimiento institucional","Total de reportes de avances en proyectos, acciones y programas públicos","(Reporte de avances en proyectos, acciones y programas públicos (Realizado)/Reporte de avances en Proyectos, acciones y programas públicos (Programado))*100","Semestral",24,{"v":1,"d":"100%"},13,{"$f":"J64/H64","v":{"v":0.5416666666666666,"d":"54%"}},{"v":62783807.06,"d":"62,783,807.06"}]
["OPD Hospital Civil de Guadalajara",null,"Actividad 3.1","Planeación, evaluación y desarrollo de los programas institucionales","Total de Informes integrados de planeación, evaluación y desarrollo ","(Informes integrados  de planeación, evaluación y desarrollo (Realizado)/ Informes integrados de planeación, evaluación y desarrollo (Programado))*100","Trimestral",106,{"v":1,"d":"100%"},50,{"$f":"J65/H65","v":{"v":0.4716981132075472,"d":"47.2%"}}]
["OPD Hospital Civil de Guadalajara",null,"Actividad 3.2","Administración de Recursos Humanos","Porcentaje de Recursos destinados a personal de prestación de servicios","(Porcentaje de recurso aplicado en el personal para la prestación de servicios (Realizado)/Porcentaje de recurso aplicado en el personal para la prestación de servicios (Programado))*100","Mensual",96,{"v":1,"d":"100%"},95.37,{"v":0.9934375000000001,"d":"99.3%"}]
["OPD Hospital Civil de Guadalajara",null,"Actividad 3.3","Elaboración de informes financieros en apego a la normatividad para la administración eficiente de los recursos","Total de Informes financieros","(Informes financieros (Realizado)/Informes financieros (Programado))*100","Trimestral",22,{"v":1,"d":"100%"},9,{"v":0.4090909090909091,"d":"40.9%"}]
["OPD Hospital Civil de Guadalajara",null,"Actividad 3.4","Programación y ejecución de procesos de adquisición de bienes, servicios y activos para la operación de la institución.","Total de Procesos de licitación","(Procesos de licitación ejecutados (Realizado)/Procesos de licitación ejecutados (Programado))*100","Trimestral",200,{"v":1,"d":"100%"},114,{"v":0.57,"d":"57.0%"}]
["OPD Hospital Civil de Guadalajara",null,"Actividad 3.5","Obtención de donativos para fortalecer las funciones sustantivas de la institución.","Total de Donativos obtenidos","(Donativos obtenidos (Realizado)/Donativos obtenidos (Programado))*100","Trimestral",157,{"v":1,"d":"100%"},75,{"$f":"J69/H69","v":{"v":0.47770700636942676,"d":"47.8%"}}]
["OPD Hospital Civil de Guadalajara",null,"Actividad 3.6","Realización de acciones para la recuperación de la información institucional en casos de desastre, con la finalidad de dar continuidad a las operaciones de la institución.","Total de Respaldos de bases de datos institucionales","(Respaldos de bases de datos (Realizado)/Respaldos de bases de datos (Programado))*100","Mensual",840,{"v":1,"d":"100%"},432,{"v":0.5142857142857142,"d":"51.4%"}]
["OPD Hospital Civil de Guadalajara",null,"Actividad 3.7","Atención de solicitudes de los usuarios internos sobre servicios informáticos, para el funcionamiento adecuado y suficiente de las tecnologías de la información.","Total de solicitudes de servicios informáticos","(Solicitudes de servicios informáticos atendidas (realizado)/Solicitudes de servicios informáticos atendidas (programado))*100","Mensual",10100,{"v":1,"d":"100%"},5069,{"v":0.5018811881188119,"d":"50.2%"}]
[null,null,"Actividad 3.8","Ejecución de servicios de mantenimiento preventivo a equipos para la atención en salud  y operación del hospital.","Total de servicios de Mantenimientos preventivos a equipos","(Servicios de mantenimiento preventivo a equipos (Realizado)/Servicios de mantenimiento preventivo a equipos  (Programado))*100","Mensual",4800,{"v":1,"d":"100%"},1880,{"v":0.39166666666666666,"d":"39.2%"}]
["OPD Hospital Civil de Guadalajara",null,"Componente 4","Sistema Institucional de Archivos implementado para el Hospital Civil de Guadalajara","Total de Archivos de Trámite autorizados","(Archivos de trámite autorizados (Realizado) / Archivos de trámite autorizados (Programado)) *100","Anual",40,{"v":1,"d":"100%"},0,{"$f":"J73/H73","v":{"v":0,"d":"0%"}},{"v":967311.4,"d":"967,311.40"},{"v":462670.3699999999,"d":"462,670.37"},{"v":940645.9599999997,"d":"940,645.96"},0,{"v":454720,"d":"454,720.00"},{"$nulls":4},"Este indicador reporta un avance de cero (0) debido a que su medición es anual, la interpretación se puede encontrar en el Informe Anual de Desempeño en la Gestión."]
["OPD Hospital Civil de Guadalajara",null,"Actividad 4.1","Implementación del Programa Anual de Desarrollo Archivístico (PADA)","Total de actividades del Programa Anual de Desarrollo Archivístico (PADA) realizadas","(Número de actividades del PADA (Realizado)/Número de actividades del PADA (Programado))*100","Trimestral",30,{"v":1,"d":"100%"},9,{"v":0.3,"d":"30.0%"}]
["OPD Hospital Civil de Guadalajara",null,"Actividad 4.2","Capacitación en gestión documental y administración de archivos","Total de  personas capacitadas en gestión documental y administración de archivos","(Personas capacitadas en gestión documental y archivos (Realizado) / Personas capacitadas en gestión documental y archivos (Programado))*100","Trimestral",120,{"v":1,"d":"100%"},8,{"$f":"J75/H75","v":{"v":0.06666666666666667,"d":"6.7%"}}]
[null,null,"Componente 5","Acciones ejecutadas del plan de trabajo para la Igualdad Sustantiva en la Administración Pública.","Total de actividades cumplidas del plan de trabajo de la Unidad de Igualdad de Género","(Número de actividades del plan de trabajo de la Unidad Igualdad de Género (Realizado)/Número de actividades del plan de trabajo de la Unidad de la Igualdad de Género (Programado)*100","Semestral",28,{"v":1,"d":"100%"},18,{"$f":"J76/H76","v":{"v":0.6428571428571429,"d":"64%"}},{"v":540635.55,"d":"540,635.55"}]
["OPD Hospital Civil de Guadalajara",null,"Componente 5","Acciones ejecutadas del plan de trabajo para la Igualdad Sustantiva en la Administración Pública.","Total de personas sensibilizadas en materia de igualdad de género","(Número de personas sensibilizadas en materia de igualdad de género (Realizado)/Número de personas sensibilizadas en materia de igualdad de género (Programado))*100","Semestral",1020,{"v":1,"d":"100%"},29,{"$f":"J77/H77","v":{"v":0.028431372549019607,"d":"3%"}}]
["OPD Hospital Civil de Guadalajara",null,"Actividad 5.1","Implementación del Programa de Cultura Institucional en Igualdad de Género","Total de acciones implementadas del Programa de Cultura Institucional en Igualdad de Género","(Número de acciones del Programa de Cultura Institucional de Igualdad de Género (Realizado)/Número de acciones del Programa de Cultura Institucional de Igualdad de Género (Programado))*100","Trimestral",6,{"v":1,"d":"100%"},1,{"$f":"J78/H78","v":{"v":0.16666666666666666,"d":"16.7%"}}]
["OPD Hospital Civil de Guadalajara",null,"Actividad 5.2","Capacitación en igualdad de genero, derechos humanos, no discriminación y comunicación institucional con lenguaje incluyente, universal y no sexista","Total de personas capacitadas en perspectiva de género","(Personas capacitadas en perspectiva de género (Realizado)/Personas capacitadas en perspectiva de género (Programado))*100","Trimestral",96,{"v":1,"d":"100%"},46,{"v":0.4791666666666667,"d":"47.9%"}]
["OPD Hospital Civil de Guadalajara",null,"Actividad 5.3","Promoción y difusión de la Unidad de Igualdad de Género","Total de Acciones de promoción y difusión de la Unidad de Igualdad de Género","(Acciones de promoción y difusión de la Unidad de Igualdad de Género (Realizado)/Acciones de promoción y difusión de la Unidad de Igualdad de Género (programado))*100","Trimestral",12,{"v":1,"d":"100%"},10,{"v":0.8333333333333334,"d":"83.3%"}]
["OPD Hospital Civil de Guadalajara",null,"Componente 6","Actos de corrupción o Faltas Administrativas prevenidos o sancionados .","Total de personas capacitadas en prevención de conductas indebidas","(Personas capacitadas en prevención de conductas indebidas (Realizado)/Personas capacitadas en prevención de conductas indebidas (Programado))*100","Semestral",4950,{"v":1,"d":"100%"},3320,{"$f":"J81/H81","v":{"v":0.6707070707070707,"d":"67%"}},{"v":9552978.66,"d":"9,552,978.66"}]
["OPD Hospital Civil de Guadalajara","909 - Servicios Integrales de Especialidad y Alta Especialidad a nuestra Población Usuaria.","Componente 6","Actos de corrupción o Faltas Administrativas prevenidos o sancionados .","Total de visitas de verificación en el programa de auditorias","(Visitas de verificación (Realizada) / Vistas de Verificación (Programado))* 100","Semestral",205,{"v":1,"d":"100%"},114,{"$f":"J82/H82","v":{"v":0.5560975609756098,"d":"56%"}}]
["OPD Hospital Civil de Guadalajara","909 - Servicios Integrales de Especialidad y Alta Especialidad a nuestra Población Usuaria.","Actividad 6.1","Identificación de probables conductas indebidas","Total de Atención de quejas y denuncias ","(Quejas y denuncias atendidas (Realizada)/Quejas y denuncias atendidas (Programada))*100","Trimestral",190,{"v":1,"d":"100%"},111,{"$f":"J83/H83","v":{"v":0.5842105263157895,"d":"58.4%"}}]
[null,null,"Actividad 6.2","Identificación de probables conductas indebidas.","Total de atenciones de reportes","(Reportes atendidos (Realizada)/Reportes atendidos (Programada))*100","Trimestral",113,{"v":1,"d":"100%"},56,{"v":0.49557522123893805,"d":"49.6%"}]
[null,null,"Actividad 6.3","Identificación de probables conductas indebidas.","Total de Auditorias","(Auditorias Iniciadas (Realizada)/Auditorias Iniciadas (Programado))*100","Trimestral",11,{"v":1,"d":"100%"},8,{"v":0.7272727272727273,"d":"72.7%"}]
[null,null,"Actividad 6.4","Detección de faltas administrativas y hechos de corrupción.","Total de Procesos de Investigación","(Procesos de investigación Iniciados (Realizadas)/Procesos de investigación Iniciados  (Programada))*100","Trimestral",171,{"v":1,"d":"100%"},85,{"v":0.49707602339181284,"d":"49.7%"}]
[null,null,"Actividad 6.5","Ejecución de sanciones a responsables de conductas indebidas.","Total de Sanciones por conductas indebidas","(Sanciones ejecutadas (Realizada)/Sanciones ejecutadas (Programada))*100","Trimestral",28,{"v":1,"d":"100%"},22,{"v":0.7857142857142857,"d":"78.6%"}]
[]
[]
[]
[]
[null,null,1,"I N D I C A D O R E S     157",{"$nulls":5},"A V A N C E S"]
[null,null,"Nivel","Resumen Narrativo","Nombre del indicador","Método de cálculo","Frecuencia de medición","Meta Valor Anual","Meta Porcentual","Avance Meta Valor Semestral","Avance Meta Porcentual","Avance del Capítulo 1000","Avance del Capítulo 2000","Avance del Capítulo 3000","Avance del Capítulo 4000","Avance del Capítulo 5000","Avance del Capítulo 6000","Avance del Capítulo 7000","Avance del Capítulo 8000","Avance del Capítulo 9000","Observaciones"]
[{"$f":"$D$6","v":"OPD Hospital Civil de Guadalajara"},{"$f":"$D$7","v":"909 - Servicios Integrales de Especialidad y Alta Especialidad a nuestra Población Usuaria."},"Fin"]
["OPD Hospital Civil de Guadalajara","909 - Servicios Integrales de Especialidad y Alta Especialidad a nuestra Población Usuaria.","Propósito"]
["OPD Hospital Civil de Guadalajara",null,"Componente 1","Médicas y médicos especialistas y subespecialistas formados para contribuir a mejorar la salud de la población","Total de Médicas y Médicos del área de la salud formado en posgrado","(Médicos especialistas formados (Realizado)/Médicos especialistas formados (Programado))*100","Anual",1007,{"v":1,"d":"100%"},0,{"$f":"J96/H96","v":{"v":0,"d":"0%"}},{"v":4708277.9,"d":"4,708,277.90"},null,{"v":3386732.74,"d":"3,386,732.74"},{"$nulls":6},"Este indicador reporta un avance de cero (0) debido a que su medición es anual, la interpretación se puede encontrar en el Informe Anual de Desempeño en la Gestión."]
["OPD Hospital Civil de Guadalajara",null,"Actividad 1.1","Desarrollo de programas educativos de especialidad, subespecialidad y alta especialidad para la formación de recursos humanos  en ciencias de la salud ","Total de médicos estudiantes formados como especialistas","(Estudiantes de especialidad (Realizado)/Estudiantes de especialidad (Programado))*100","Trimestral",604,{"v":1,"d":"100%"},636,{"$f":"J97/H97","v":{"v":1.0529801324503312,"d":"105%"}},{"$nulls":9},"El tipo de acumulación de este indicador es \"Valor Presente\" por lo que se toma el último valor o valor actual, por lo que puede reflejar un avance del 100% porque no es acumulativo. No refleja el alcance de la meta final."]
["OPD Hospital Civil de Guadalajara",null,"Actividad 1.2","Desarrollo de programas educativos de especialidad, subespecialidad y alta especialidad para la formación de recursos humanos  en ciencias de la salud ","Total de médicos estudiantes formados como subespecialistas","(Estudiantes de subespecialidad (Realizado)/Estudiantes de subespecialidad (Programado))*100","Trimestral",384,{"v":1,"d":"100%"},386,{"$f":"J98/H98","v":{"v":1.0052083333333333,"d":"100.5%"}},{"$nulls":9},"El tipo de acumulación de este indicador es \"Valor Presente\" por lo que se toma el último valor o valor actual, por lo que puede reflejar un avance del 100% porque no es acumulativo. No refleja el alcance de la meta final."]
["OPD Hospital Civil de Guadalajara",null,"Actividad 1.3","Desarrollo de programas educativos de especialidad, subespecialidad y alta especialidad para la formación de recursos humanos  en ciencias de la salud ","Total de médicos estudiantes formados en alta especialidad","(Estudiantes de alta especialidad (Realizado)/Estudiantes de alta especialidad (Programado))*100","Trimestral",26,{"v":1,"d":"100%"},26,{"v":1,"d":"100.0%"},{"$nulls":9},"El tipo de acumulación de este indicador es \"Valor Presente\" por lo que se toma el último valor o valor actual, por lo que puede reflejar un avance del 100% porque no es acumulativo. No refleja el alcance de la meta final."]
["OPD Hospital Civil de Guadalajara",null,"Actividad 1.4","Generación de conferencias y cursos de capacitación para la actualización del personal adscrito y externos al Hospital Civil de Guadalajara","Total de asistentes a conferencias y cursos de capacitación","(Asistentes a cursos, conferencias y congresos organizados por la institución(Realizado)/Asistentes a cursos, conferencias y congresos organizados por la institución (Programado))*100","Trimestral",6800,{"v":1,"d":"100%"},5430,{"v":0.7985294117647059,"d":"79.9%"},{"$nulls":9},"El tipo de acumulación de este indicador es \"Valor Presente\" por lo que se toma el último valor o valor actual, por lo que puede reflejar un avance del 100% porque no es acumulativo. No refleja el alcance de la meta final."]
["OPD Hospital Civil de Guadalajara",null,"Actividad 1.5","Fortalecimiento de convenios de vinculación y extensión académica interinstitucional con pertinencia social","Total de estudiantes en movilidad académica","(Estudiantes en movilidad académica (Realizado)/Estudiantes en movilidad académica (Programado))*100","Trimestral",60,{"v":1,"d":"100%"},67,{"v":1.1166666666666667,"d":"111.7%"},{"$nulls":9},"El tipo de acumulación de este indicador es \"Valor Presente\" por lo que se toma el último valor o valor actual, por lo que puede reflejar un avance del 100% porque no es acumulativo. No refleja el alcance de la meta final."]
["OPD Hospital Civil de Guadalajara",null,"Componente 2","Trabajos de investigación realizados","Total de investigaciones realizadas","(Investigaciones realizadas (Realizado)/Investigaciones realizadas (Programado))*100","Semestral",400,{"v":1,"d":"100%"},199,{"$f":"J102/H102","v":{"v":0.4975,"d":"50%"}},{"v":3090136.23,"d":"3,090,136.23"},{"v":143337.67,"d":"143,337.67"},{"v":2244456.320000001,"d":"2,244,456.32"}]
["OPD Hospital Civil de Guadalajara",null,"Actividad 2.1","Promoción y difusión de las investigaciones científicas en el Hospital Civil de Guadalajara","Total de sesiones de promoción a  la investigación","(Sesiones de promoción a la investigación (Realizado)/Sesiones de promoción a la investigación  (Programado))*100","Trimestral",48,{"v":1,"d":"100%"},26,{"$f":"J103/H103","v":{"v":0.5416666666666666,"d":"54.2%"}}]
["OPD Hospital Civil de Guadalajara",null,"Actividad 2.2","Investigaciones científicas en el Hospital Civil de Guadalajara registradas","Total de investigaciones registradas","(Investigaciones registradas (Realizada)/Investigaciones registradas (Programado))*100","Trimestral",1390,{"v":1,"d":"100%"},1126,{"v":0.8100719424460432,"d":"81.0%"}]
["OPD Hospital Civil de Guadalajara",null,"Componente 3","Estudiantes internos de pregrado, prestadores de servicio social  y estudiantes de prácticas profesionales y ciclos clínicos de pregrado formados. ","Total de estudiantes internos de pregrado","(Estudiantes de pregrado (Realizado)/Estudiantes de pregrado (Programado))*100","Semestral",1745,{"v":1,"d":"100%"},1270,{"$f":"J105/H105","v":{"v":0.7277936962750716,"d":"73%"}},{"v":3429560.6,"d":"3,429,560.60"},{"$nulls":8},"El tipo de acumulación de este indicador es \"Valor Presente\" por lo que se toma el último valor o valor actual, por lo que puede reflejar un avance del 100% porque no es acumulativo. No refleja el alcance de la meta final."]
["OPD Hospital Civil de Guadalajara",null,"Actividad 3.1","Implementación  de programa operativo de internado de pregrado y de servicio social","Total de Médicos internos de pregrado ","(Médicos internos de pregrado (Realizado)/Médicos internos de pregrado (Programado))*100","Trimestral",700,{"v":1,"d":"100%"},749,{"$f":"J106/H106","v":{"v":1.07,"d":"107.0%"}},{"$nulls":9},"El tipo de acumulación de este indicador es \"Valor Presente\" por lo que se toma el último valor o valor actual, por lo que puede reflejar un avance del 100% porque no es acumulativo. No refleja el alcance de la meta final."]
["OPD Hospital Civil de Guadalajara",null,"Actividad 3.2","Implementación  de programa operativo de internado de pregrado y de servicio social","Total de prestadores de servicio social ","(Prestadores de servicio social (Realizado)/Prestadores de servicio social (Programado))*100","Trimestral",575,{"v":1,"d":"100%"},521,{"v":0.9060869565217391,"d":"90.6%"},{"$nulls":9},"El tipo de acumulación de este indicador es \"Valor Presente\" por lo que se toma el último valor o valor actual, por lo que puede reflejar un avance del 100% porque no es acumulativo. No refleja el alcance de la meta final."]
["OPD Hospital Civil de Guadalajara",null,"Actividad 3.3","Implementación de programas operativos de prácticas profesionales, y ciclos clínicos de pregrado ","Total de estudiantes en programas operativos de ciclos clínicos de pregrado ","(Estudiantes en ciclos clínicos de pregrado (Realizado)/Estudiantes en ciclos clínicos de pregrado (Programado))*100","Trimestral",230,{"v":1,"d":"100%"},231,{"v":1.0043478260869565,"d":"100.4%"},{"$nulls":9},"El tipo de acumulación de este indicador es \"Valor Presente\" por lo que se toma el último valor o valor actual, por lo que puede reflejar un avance del 100% porque no es acumulativo. No refleja el alcance de la meta final."]
["OPD Hospital Civil de Guadalajara",null,"Actividad 3.4","Implementación de programas operativos de prácticas profesionales, y ciclos clínicos de pregrado ","Total de estudiantes en programas operativos de prácticas profesionales.","(Estudiantes en programas operativos de prácticas profesionales (Realizado)/Estudiantes en programas operativos de prácticas profesionales (Programados))*100","Trimestral",240,{"v":1,"d":"100%"},240,{"v":1,"d":"100.0%"},{"$nulls":9},"El tipo de acumulación de este indicador es \"Valor Presente\" por lo que se toma el último valor o valor actual, por lo que puede reflejar un avance del 100% porque no es acumulativo. No refleja el alcance de la meta final."]

{"sheet":"AvancesAnual","index":5,"n_rows":100,"n_cols":21,"rows_kept":100,"merged":[[1,20,3,20],[5,1,5,2],[6,1,6,2],[7,1,7,2],[8,1,8,2],[8,20,9,20],[9,1,9,2],[11,3,11,8],[11,9,11,20],[46,3,46,8],[46,9,46,20]]}
[null,null,1]
[null,null,1]
[null,null,"REPORTE DE AVANCES PARA MATRIZ DE INDICADORES PARA RESULTADOS POR PROGRAMA "]
[null,null,1,null,"A V A N C E      A N U A L"]
[null,null,1]
[null,"Ente Fiscalizable",null,"O.P.D. Hospital Civil de Guadalajara"]
[null,"Denominación del Programa 909",null,"909-Prevención, Promoción, Atención y Formación en Salud a fin de Proporcionar Servicios Integrales de Especialidad y Alta Especialidad a nuestra Población Usuaria."]
[null,"Denominación del Programa 903",null,"903 - Fortalecimiento Institucional para la Operación del Hospital Civil de Guadalajara"]
[null,"Unidad Responsable/OPD",null,"O.P.D. Hospital Civil de Guadalajara"]
[null,"Periodo que se reporta",null,"ANUAL"]
[null,null,1]
[null,null,1,"I N D I C A D O R E S",{"$nulls":5},"A V A N C E S"]
[null,null,"Nivel","Resumen Narrativo","Nombre del indicador","Método de cálculo","Frecuencia de medición","Meta Valor Anual","Meta Porcentual","Avance Meta Valor Anual","Avance Meta Porcentual","Avance del Capítulo 1000","Avance del Capítulo 2000","Avance del Capítulo 3000","Avance del Capítulo 4000","Avance del Capítulo 5000","Avance del Capítulo 6000","Avance del Capítulo 7000","Avance del Capítulo 8000","Avance del Capítulo 9000","Observaciones"]
[{"$f":"$D$6","v":"O.P.D. Hospital Civil de Guadalajara"},{"$f":"$D$7","v":"909-Prevención, Promoción, Atención y Formación en Salud a fin de Proporcionar Servicios Integrales de Especialidad y Alta Especialidad a nuestra Población Usuaria."},"Fin"]
[{"$f":"$D$6","v":"O.P.D. Hospital Civil de Guadalajara"},{"$f":"$D$7","v":"909-Prevención, Promoción, Atención y Formación en Salud a fin de Proporcionar Servicios Integrales de Especialidad y Alta Especialidad a nuestra Población Usuaria."},"Propósito"]
["O.P.D. Hospital Civil de Guadalajara","909-Prevención, Promoción, Atención y Formación en Salud a fin de Proporcionar Servicios Integrales de Especialidad y Alta Especialidad a nuestra Población Usuaria.","Componente 1"]
["O.P.D. Hospital Civil de Guadalajara","909-Prevención, Promoción, Atención y Formación en Salud a fin de Proporcionar Servicios Integrales de Especialidad y Alta Especialidad a nuestra Población Usuaria.","Componente 1"]
["O.P.D. Hospital Civil de Guadalajara","909-Prevención, Promoción, Atención y Formación en Salud a fin de Proporcionar Servicios Integrales de Especialidad y Alta Especialidad a nuestra Población Usuaria.","Actividad 1.1"]
["O.P.D. Hospital Civil de Guadalajara","909-Prevención, Promoción, Atención y Formación en Salud a fin de Proporcionar Servicios Integrales de Especialidad y Alta Especialidad a nuestra Población Usuaria.","Actividad 1.2"]
["O.P.D. Hospital Civil de Guadalajara","909-Prevención, Promoción, Atención y Formación en Salud a fin de Proporcionar Servicios Integrales de Especialidad y Alta Especialidad a nuestra Población Usuaria.","Actividad 1.3"]
["O.P.D. Hospital Civil de Guadalajara","909-Prevención, Promoción, Atención y Formación en Salud a fin de Proporcionar Servicios Integrales de Especialidad y Alta Especialidad a nuestra Población Usuaria.","Actividad 1.4"]
["O.P.D. Hospital Civil de Guadalajara","909-Prevención, Promoción, Atención y Formación en Salud a fin de Proporcionar Servicios Integrales de Especialidad y Alta Especialidad a nuestra Población Usuaria.","Actividad 1.5"]
["O.P.D. Hospital Civil de Guadalajara","909-Prevención, Promoción, Atención y Formación en Salud a fin de Proporcionar Servicios Integrales de Especialidad y Alta Especialidad a nuestra Población Usuaria.","Actividad 1.15"]
["O.P.D. Hospital Civil de Guadalajara","909-Prevención, Promoción, Atención y Formación en Salud a fin de Proporcionar Servicios Integrales de Especialidad y Alta Especialidad a nuestra Población Usuaria.","Actividad 1.16"]
["O.P.D. Hospital Civil de Guadalajara","909-Prevención, Promoción, Atención y Formación en Salud a fin de Proporcionar Servicios Integrales de Especialidad y Alta Especialidad a nuestra Población Usuaria.","Componente 2"]
["O.P.D. Hospital Civil de Guadalajara","909-Prevención, Promoción, Atención y Formación en Salud a fin de Proporcionar Servicios Integrales de Especialidad y Alta Especialidad a nuestra Población Usuaria.","Actividad 2.1"]
["O.P.D. Hospital Civil de Guadalajara","909-Prevención, Promoción, Atención y Formación en Salud a fin de Proporcionar Servicios Integrales de Especialidad y Alta Especialidad a nuestra Población Usuaria.","Actividad 2.2"]
["O.P.D. Hospital Civil de Guadalajara","909-Prevención, Promoción, Atención y Formación en Salud a fin de Proporcionar Servicios Integrales de Especialidad y Alta Especialidad a nuestra Población Usuaria.","Actividad 2.3"]
["O.P.D. Hospital Civil de Guadalajara","909-Prevención, Promoción, Atención y Formación en Salud a fin de Proporcionar Servicios Integrales de Especialidad y Alta Especialidad a nuestra Población Usuaria.","Componente 3"]
["O.P.D. Hospital Civil de Guadalajara","909-Prevención, Promoción, Atención y Formación en Salud a fin de Proporcionar Servicios Integrales de Especialidad y Alta Especialidad a nuestra Población Usuaria.","Componente 3"]
["O.P.D. Hospital Civil de Guadalajara","909-Prevención, Promoción, Atención y Formación en Salud a fin de Proporcionar Servicios Integrales de Especialidad y Alta Especialidad a nuestra Población Usuaria.","Actividad 3.1"]
["O.P.D. Hospital Civil de Guadalajara","909-Prevención, Promoción, Atención y Formación en Salud a fin de Proporcionar Servicios Integrales de Especialidad y Alta Especialidad a nuestra Población Usuaria.","Actividad 3.2"]
["O.P.D. Hospital Civil de Guadalajara","909-Prevención, Promoción, Atención y Formación en Salud a fin de Proporcionar Servicios Integrales de Especialidad y Alta Especialidad a nuestra Población Usuaria.","Actividad 3.3"]
["O.P.D. Hospital Civil de Guadalajara","909-Prevención, Promoción, Atención y Formación en Salud a fin de Proporcionar Servicios Integrales de Especialidad y Alta Especialidad a nuestra Población Usuaria.","Componente 4"]
["O.P.D. Hospital Civil de Guadalajara","909-Prevención, Promoción, Atención y Formación en Salud a fin de Proporcionar Servicios Integrales de Especialidad y Alta Especialidad a nuestra Población Usuaria.","Componente 4"]
["O.P.D. Hospital Civil de Guadalajara","909-Prevención, Promoción, Atención y Formación en Salud a fin de Proporcionar Servicios Integrales de Especialidad y Alta Especialidad a nuestra Población Usuaria.","Componente 4"]
["O.P.D. Hospital Civil de Guadalajara","909-Prevención, Promoción, Atención y Formación en Salud a fin de Proporcionar Servicios Integrales de Especialidad y Alta Especialidad a nuestra Población Usuaria.","Componente 4"]
["O.P.D. Hospital Civil de Guadalajara","909-Prevención, Promoción, Atención y Formación en Salud a fin de Proporcionar Servicios Integrales de Especialidad y Alta Especialidad a nuestra Población Usuaria.","Actividad 4.1"]
["O.P.D. Hospital Civil de Guadalajara","909-Prevención, Promoción, Atención y Formación en Salud a fin de Proporcionar Servicios Integrales de Especialidad y Alta Especialidad a nuestra Población Usuaria.","Actividad 4.2"]
["O.P.D. Hospital Civil de Guadalajara","909-Prevención, Promoción, Atención y Formación en Salud a fin de Proporcionar Servicios Integrales de Especialidad y Alta Especialidad a nuestra Población Usuaria.","Actividad 4.1"]
[]
[]
[]
[]
[]
[]
[null,null,1,"I N D I C A D O R E S",{"$nulls":5},"A V A N C E S"]
[null,null,"Nivel","Resumen Narrativo","Nombre del indicador","Método de cálculo","Frecuencia de medición","Meta Valor Anual","Meta Porcentual","Avance Meta Valor Anual","Avance Meta Porcentual","Avance del Capítulo 1000","Avance del Capítulo 2000","Avance del Capítulo 3000","Avance del Capítulo 4000","Avance del Capítulo 5000","Avance del Capítulo 6000","Avance del Capítulo 7000","Avance del Capítulo 8000","Avance del Capítulo 9000","Observaciones"]
["OPD Hospital Civil de Guadalajara","909-Prevención, Promoción, Atención y Formación en Salud para Proporcionar Servicios Integrales de Especialidad y Alta Especialidad a nuestra Población Usuaria.","Fin"]
["OPD Hospital Civil de Guadalajara","909-Prevención, Promoción, Atención y Formación en Salud para Proporcionar Servicios Integrales de Especialidad y Alta Especialidad a nuestra Población Usuaria.","Propósito"]
["O.P.D. Hospital Civil de Guadalajara","909-Prevención, Promoción, Atención y Formación en Salud a fin de Proporcionar Servicios Integrales de Especialidad y Alta Especialidad a nuestra Población Usuaria.","Componente 1"]
["O.P.D. Hospital Civil de Guadalajara","909-Prevención, Promoción, Atención y Formación en Salud a fin de Proporcionar Servicios Integrales de Especialidad y Alta Especialidad a nuestra Población Usuaria.","Componente 1"]
["O.P.D. Hospital Civil de Guadalajara","909-Prevención, Promoción, Atención y Formación en Salud a fin de Proporcionar Servicios Integrales de Especialidad y Alta Especialidad a nuestra Población Usuaria.","Actividad 1.1"]
["O.P.D. Hospital Civil de Guadalajara","909-Prevención, Promoción, Atención y Formación en Salud a fin de Proporcionar Servicios Integrales de Especialidad y Alta Especialidad a nuestra Población Usuaria.","Actividad 1.2"]
["O.P.D. Hospital Civil de Guadalajara","909-Prevención, Promoción, Atención y Formación en Salud a fin de Proporcionar Servicios Integrales de Especialidad y Alta Especialidad a nuestra Población Usuaria.","Actividad 1.3"]
["O.P.D. Hospital Civil de Guadalajara","909-Prevención, Promoción, Atención y Formación en Salud a fin de Proporcionar Servicios Integrales de Especialidad y Alta Especialidad a nuestra Población Usuaria.","Actividad 1.4"]
["O.P.D. Hospital Civil de Guadalajara","909-Prevención, Promoción, Atención y Formación en Salud a fin de Proporcionar Servicios Integrales de Especialidad y Alta Especialidad a nuestra Población Usuaria.","Actividad 1.5"]
["O.P.D. Hospital Civil de Guadalajara","909-Prevención, Promoción, Atención y Formación en Salud a fin de Proporcionar Servicios Integrales de Especialidad y Alta Especialidad a nuestra Población Usuaria.","Componente 2"]
["O.P.D. Hospital Civil de Guadalajara","909-Prevención, Promoción, Atención y Formación en Salud a fin de Proporcionar Servicios Integrales de Especialidad y Alta Especialidad a nuestra Población Usuaria.","Actividad 2.1"]
["O.P.D. Hospital Civil de Guadalajara","909-Prevención, Promoción, Atención y Formación en Salud a fin de Proporcionar Servicios Integrales de Especialidad y Alta Especialidad a nuestra Población Usuaria.","Actividad 2.2"]
["O.P.D. Hospital Civil de Guadalajara","909-Prevención, Promoción, Atención y Formación en Salud a fin de Proporcionar Servicios Integrales de Especialidad y Alta Especialidad a nuestra Población Usuaria.","Actividad 2.3"]
["O.P.D. Hospital Civil de Guadalajara","909-Prevención, Promoción, Atención y Formación en Salud a fin de Proporcionar Servicios Integrales de Especialidad y Alta Especialidad a nuestra Población Usuaria.","Actividad 2.4"]
["O.P.D. Hospital Civil de Guadalajara","909-Prevención, Promoción, Atención y Formación en Salud a fin de Proporcionar Servicios Integrales de Especialidad y Alta Especialidad a nuestra Población Usuaria.","Actividad 2.5"]
["O.P.D. Hospital Civil de Guadalajara","909-Prevención, Promoción, Atención y Formación en Salud a fin de Proporcionar Servicios Integrales de Especialidad y Alta Especialidad a nuestra Población Usuaria.","Actividad 2.6"]
["O.P.D. Hospital Civil de Guadalajara","909-Prevención, Promoción, Atención y Formación en Salud a fin de Proporcionar Servicios Integrales de Especialidad y Alta Especialidad a nuestra Población Usuaria.","Componente 3"]
["O.P.D. Hospital Civil de Guadalajara","909-Prevención, Promoción, Atención y Formación en Salud a fin de Proporcionar Servicios Integrales de Especialidad y Alta Especialidad a nuestra Población Usuaria.","Actividad 3.1"]
["O.P.D. Hospital Civil de Guadalajara","909-Prevención, Promoción, Atención y Formación en Salud a fin de Proporcionar Servicios Integrales de Especialidad y Alta Especialidad a nuestra Población Usuaria.","Actividad 3.2"]
["O.P.D. Hospital Civil de Guadalajara","909-Prevención, Promoción, Atención y Formación en Salud a fin de Proporcionar Servicios Integrales de Especialidad y Alta Especialidad a nuestra Población Usuaria.","Actividad 3.3"]
["O.P.D. Hospital Civil de Guadalajara","909-Prevención, Promoción, Atención y Formación en Salud a fin de Proporcionar Servicios Integrales de Especialidad y Alta Especialidad a nuestra Población Usuaria.","Actividad 3.4"]
["O.P.D. Hospital Civil de Guadalajara","909-Prevención, Promoción, Atención y Formación en Salud a fin de Proporcionar Servicios Integrales de Especialidad y Alta Especialidad a nuestra Población Usuaria.","Actividad 3.5"]
["O.P.D. Hospital Civil de Guadalajara","909-Prevención, Promoción, Atención y Formación en Salud a fin de Proporcionar Servicios Integrales de Especialidad y Alta Especialidad a nuestra Población Usuaria.","Actividad 3.6"]
["O.P.D. Hospital Civil de Guadalajara","909-Prevención, Promoción, Atención y Formación en Salud a fin de Proporcionar Servicios Integrales de Especialidad y Alta Especialidad a nuestra Población Usuaria.","Actividad 3.7"]
["O.P.D. Hospital Civil de Guadalajara","909-Prevención, Promoción, Atención y Formación en Salud a fin de Proporcionar Servicios Integrales de Especialidad y Alta Especialidad a nuestra Población Usuaria.","Componente 4"]
["O.P.D. Hospital Civil de Guadalajara","909-Prevención, Promoción, Atención y Formación en Salud a fin de Proporcionar Servicios Integrales de Especialidad y Alta Especialidad a nuestra Población Usuaria.","Actividad 4.1"]
["O.P.D. Hospital Civil de Guadalajara","909-Prevención, Promoción, Atención y Formación en Salud a fin de Proporcionar Servicios Integrales de Especialidad y Alta Especialidad a nuestra Población Usuaria.","Actividad 4.2"]
["O.P.D. Hospital Civil de Guadalajara","909-Prevención, Promoción, Atención y Formación en Salud a fin de Proporcionar Servicios Integrales de Especialidad y Alta Especialidad a nuestra Población Usuaria.","Actividad 4.3"]
["O.P.D. Hospital Civil de Guadalajara","909-Prevención, Promoción, Atención y Formación en Salud a fin de Proporcionar Servicios Integrales de Especialidad y Alta Especialidad a nuestra Población Usuaria.","Actividad 4.4"]
["O.P.D. Hospital Civil de Guadalajara","909-Prevención, Promoción, Atención y Formación en Salud a fin de Proporcionar Servicios Integrales de Especialidad y Alta Especialidad a nuestra Población Usuaria.","Actividad 4.5"]
[{"$f":"$D$6","v":"O.P.D. Hospital Civil de Guadalajara"},{"$f":"$D$7","v":"909-Prevención, Promoción, Atención y Formación en Salud a fin de Proporcionar Servicios Integrales de Especialidad y Alta Especialidad a nuestra Población Usuaria."},"Actividad 4.6"]
["O.P.D. Hospital Civil de Guadalajara","909-Prevención, Promoción, Atención y Formación en Salud a fin de Proporcionar Servicios Integrales de Especialidad y Alta Especialidad a nuestra Población Usuaria.","Actividad 4.7"]
["O.P.D. Hospital Civil de Guadalajara","909-Prevención, Promoción, Atención y Formación en Salud a fin de Proporcionar Servicios Integrales de Especialidad y Alta Especialidad a nuestra Población Usuaria.","Actividad 4.8"]
["O.P.D. Hospital Civil de Guadalajara","909-Prevención, Promoción, Atención y Formación en Salud a fin de Proporcionar Servicios Integrales de Especialidad y Alta Especialidad a nuestra Población Usuaria."]
["O.P.D. Hospital Civil de Guadalajara","909-Prevención, Promoción, Atención y Formación en Salud a fin de Proporcionar Servicios Integrales de Especialidad y Alta Especialidad a nuestra Población Usuaria."]
["O.P.D. Hospital Civil de Guadalajara","909-Prevención, Promoción, Atención y Formación en Salud a fin de Proporcionar Servicios Integrales de Especialidad y Alta Especialidad a nuestra Población Usuaria."]
["O.P.D. Hospital Civil de Guadalajara","909-Prevención, Promoción, Atención y Formación en Salud a fin de Proporcionar Servicios Integrales de Especialidad y Alta Especialidad a nuestra Población Usuaria."]
["O.P.D. Hospital Civil de Guadalajara","909-Prevención, Promoción, Atención y Formación en Salud a fin de Proporcionar Servicios Integrales de Especialidad y Alta Especialidad a nuestra Población Usuaria."]
["O.P.D. Hospital Civil de Guadalajara","909-Prevención, Promoción, Atención y Formación en Salud a fin de Proporcionar Servicios Integrales de Especialidad y Alta Especialidad a nuestra Población Usuaria."]
["O.P.D. Hospital Civil de Guadalajara","909-Prevención, Promoción, Atención y Formación en Salud a fin de Proporcionar Servicios Integrales de Especialidad y Alta Especialidad a nuestra Población Usuaria."]
["O.P.D. Hospital Civil de Guadalajara","909-Prevención, Promoción, Atención y Formación en Salud a fin de Proporcionar Servicios Integrales de Especialidad y Alta Especialidad a nuestra Población Usuaria."]
["O.P.D. Hospital Civil de Guadalajara","909-Prevención, Promoción, Atención y Formación en Salud a fin de Proporcionar Servicios Integrales de Especialidad y Alta Especialidad a nuestra Población Usuaria."]
["O.P.D. Hospital Civil de Guadalajara","909-Prevención, Promoción, Atención y Formación en Salud a fin de Proporcionar Servicios Integrales de Especialidad y Alta Especialidad a nuestra Población Usuaria."]
["O.P.D. Hospital Civil de Guadalajara","909-Prevención, Promoción, Atención y Formación en Salud a fin de Proporcionar Servicios Integrales de Especialidad y Alta Especialidad a nuestra Población Usuaria."]
["O.P.D. Hospital Civil de Guadalajara","909-Prevención, Promoción, Atención y Formación en Salud a fin de Proporcionar Servicios Integrales de Especialidad y Alta Especialidad a nuestra Población Usuaria."]
["O.P.D. Hospital Civil de Guadalajara","909-Prevención, Promoción, Atención y Formación en Salud a fin de Proporcionar Servicios Integrales de Especialidad y Alta Especialidad a nuestra Población Usuaria."]
["O.P.D. Hospital Civil de Guadalajara","909-Prevención, Promoción, Atención y Formación en Salud a fin de Proporcionar Servicios Integrales de Especialidad y Alta Especialidad a nuestra Población Usuaria."]
["O.P.D. Hospital Civil de Guadalajara","909-Prevención, Promoción, Atención y Formación en Salud a fin de Proporcionar Servicios Integrales de Especialidad y Alta Especialidad a nuestra Población Usuaria."]
["O.P.D. Hospital Civil de Guadalajara","909-Prevención, Promoción, Atención y Formación en Salud a fin de Proporcionar Servicios Integrales de Especialidad y Alta Especialidad a nuestra Población Usuaria."]
["O.P.D. Hospital Civil de Guadalajara","909-Prevención, Promoción, Atención y Formación en Salud a fin de Proporcionar Servicios Integrales de Especialidad y Alta Especialidad a nuestra Población Usuaria."]
["O.P.D. Hospital Civil de Guadalajara","909-Prevención, Promoción, Atención y Formación en Salud a fin de Proporcionar Servicios Integrales de Especialidad y Alta Especialidad a nuestra Población Usuaria."]
["O.P.D. Hospital Civil de Guadalajara","909-Prevención, Promoción, Atención y Formación en Salud a fin de Proporcionar Servicios Integrales de Especialidad y Alta Especialidad a nuestra Población Usuaria."]

{"sheet":"Base","index":6,"n_rows":1,"n_cols":60,"rows_kept":1}
["ID","Ente auditable","Denominación del Programa","Categoría programática","Unidad Responsable","Finalidad","Función","Sub-función","Alineación con objetivos superiores del PND","Alineación con objetivos secundarios del PND","Alineación con objetivos superiores del PED","Alineación con objetivos secundarios del PED","Alineación con objetivos superiores del PMD","Alineación con objetivos secundarios del PMD","Nivel MIR","Código del nivel MIR","Resumen Narrativo (objetivos)","Nombre del indicador","Definición del indicador","Dimensión del indicador","Tipo de indicador","Método de Cálculo del indicador","Valor programado 1 (Numerador)","Valor programado 2 (Denominador)","Frecuencia de Medición del indicador","Unidad de Medida del indicador","Metas del indicador","Medios de Verificación del indicador","Supuestos del indicador","Capítulo 1000","Capítulo 2000","Capítulo 3000","Capítulo 4000","Capítulo 5000","Capítulo 6000","Capítulo 7000","Capítulo 8000","Capítulo 9000","Avance 1er Semestre del Valor programado 1 (Numerador)","Avance 1er Semestre del Valor programado 2 (Denominador)","Avance Anual del Valor programado 1 (Numerador)","Avance Anual del Valor programado 2 (Denominador)","Avance 1er Semestre del Capítulo 1000","Avance 1er Semestre del Capítulo 2000","Avance 1er Semestre del Capítulo 3000","Avance 1er Semestre del Capítulo 4000","Avance 1er Semestre del Capítulo 5000","Avance 1er Semestre del Capítulo 6000","Avance 1er Semestre del Capítulo 7000","Avance 1er Semestre del Capítulo 8000","Avance 1er Semestre del Capítulo 9000","Avance Anual del Capítulo 1000","Avance Anual del Capítulo 2000","Avance Anual del Capítulo 3000","Avance Anual del Capítulo 4000","Avance Anual del Capítulo 5000","Avance Anual del Capítulo 6000","Avance Anual del Capítulo 7000","Avance Anual del Capítulo 8000","Avance Anual del Capítulo 9000"]

{"sheet":"Listas","index":7,"n_rows":174,"n_cols":33,"rows_kept":174,"hidden":true}
[]
[null,"Municipio","Denominación del Programa","Categoría programática","Unidad responsable","Fin","Función","Sub-función","Alineación con objetivos superiores del PND","Alineación con objetivos secundarios del PND","Alineación con objetivos superiores del PED","Alineación con objetivos secundarios del PED","Alineación con objetivos superior del PMD","Alineación con objetivos secundario del PMD","Nivel MIR","Resumen del nivel MIR","Resumen Narrativo (objetivos)","Cantidad de Gasto","Nombre","Definición","Dimensión","Tipo","Variables","Método de Cálculo","Frecuencia de Medición","Unidad de Medida","Valores Programados","Metas","Medios de Verificación","Supuestos"]
[null,"Acatic",null,"Subsidios sujetos a reglas de operación",null,"Gobierno","Legislación","1.1.1 Legislación","México_en_Paz","1.1. Promover y fortalecer la gobernabilidad democrática","O1_Incrementar_la_sostenibilidad_del_medio_ambiente_y_la_vulnerabilidad_del_cambio_climático","O1E1 Detener y revertir la degradación del medio ambiente",null,null,"Fin","F",{"$nulls":4},"Eficacia","Estratégico",null,null,"Semanal",{"$nulls":7},"Primer semestre"]
[null,"Acatlán de Juárez",null,"Otros subsidios",null,"Desarrollo_Social","Justicia","1.1.2 Fiscalización","México_Incluyente","1.2. Garantizar la seguridad nacional","O2_Impulsar_el_desarrollo_sostenible_de_las_regiones_del_estado","O1E2 Efectuar una ordenación y manejo sostenible de los bosques",null,null,"Propósito","P",{"$nulls":4},"Eficiencia","Gestión",null,null,"Mensual",{"$nulls":7},"Segundo semestre"]
[null,"Ahualulco de Mercado",null,"Prestación de servicios públicos",null,"Desarrollo_Económico","Coordinación_Política_de_Gobierno","1.2.1 Impartición de Justicia","México_con_Educación_de_Calidad","1.3. Mejorar las condiciones de seguridad pública","O3_Promover_un_desarrollo_urbano_sostenible_equitativo_y_ordenado","O1E3 Frenar la pérdida de diversidad biológica",null,null,"Componentes","C1",{"$nulls":4},"Economía",{"$nulls":3},"Bimestral"]
[null,"Amacueca",null,"Provisión de bienes públicos",null,"Otros","Relaciones_Exteriores","1.2.2 Procuración de Justicia","México_Próspero","1.4. Garantizar un sistema de Justicia Penal eficaz, expedito, imparcial y transparente","O4_Garantizar_el_suministro_del_agua_para_población_y_actividades_productivas","O1E4 Incrementar el manejo sustentable de los residuos",null,null,"Actividades","C2",{"$nulls":4},"Calidad",{"$nulls":3},"Trimestral"]
[null,"Amatitán",null,"Planeación, Seguimiento y Evaluación de políticas Públicas",null,null,"Asuntos_Financieros_y_Hacendarios","1.2.3 Reclusión y Readaptación Social","México_Con_Responsabilidad_Global","1.5. Garantizar el respeto y protección de los derechos humanos y la erradicación de la discriminación","O5_Mejorar_la_calidad_seguridad_y_sostenibilidad_de_la_movilidad_urbana","O1E5 Incrementar la producción y uso de fuentes de energía limpias",{"$nulls":3},"C3",{"$nulls":8},"Cuatrimestral"]
[null,"Ameca",null,"Promoción y fomento",null,null,"Asuntos_de_Orden_Público_y_Seguridad_Interior","1.2.4 Derechos Humanos",null,"1.6. Salvaguardar a la población, a sus bienes y a su entorno ante un desastre de origen natural o humano","O6_Disminuir_los_factores_de_riesgo_y_mejorar_la_atención_ante_desastres","O1E6 Mitigar las emisiones de gases de efecto invernadero",{"$nulls":3},"C1A1",{"$nulls":8},"Semestral"]
[null,"San Juanito de Escobedo",null,"Regulación y Supervisión",null,null,"Otros_Servicios_Generales","1.3.1 Presidencia / Gubernatura",null,"2.1. Garantizar el ejercicio efectivo de los derechos sociales para toda la población","O7_Incrementar_la_formalidad_del_empleo_la_seguridad_social_y_estabilidad_laboral","O1E7 Ordenar y proteger de manera sostenible los ecosistemas lacustres y costeros",{"$nulls":3},"C1A2",{"$nulls":8},"Anual"]
[null,"Arandas",null,"Específicos",null,null,"Protección_Ambiental","1.3.2 Política Interior",null,"2.2. Transitar hacia una sociedad equitativa e incluyente","O8_Mejorar_la_competitividad_y_el_crecimiento_inclusivo_y_sostenible_de_los_sectores_económicos","O1E8 Reducir la contaminación de acuíferos y aguas superficiales",{"$nulls":3},"C1A3",{"$nulls":8},"Bienal"]
[null,"El Arenal",null,"Proyectos de Inversión",null,null,"Vivienda_y_Servicios_a_la_Comunidad","1.3.3 Preservación y Cuidado del Patrimonio Público",null,"2.3. Asegurar el acceso a los servicios de salud","O9_Incrementar_de_forma_sostenible_la_productividad_y_rentabilidad_de_las_actividades_del_sector_primario","O1E9 Reducir la vulnerabilidad y aumentar la resiliencia de la sociedad, las cuencas hidrológicas y los ecosistemas naturales, urbanos y agropecuarios frente a los efectos adversos del cambio climático",{"$nulls":3},"C1A4",{"$nulls":8},"Trienal"]
[null,"Atemajac de Brizuela",null,"Apoyo al Proceso Presupuestario y para Mejorar la Eficiencia Institucional",null,null,"Salud","1.3.4 Función Pública",null,"2.4. Ampliar el acceso a la seguridad social","O10_Incrementar_la_afluencia_y_la_derrama_económica_proveniente_del_turismo","O1E10 Revertir el deterioro de la calidad del aire",{"$nulls":3},"C2A1",{"$nulls":8},"Sexenal"]
[null,"Atengo",null,"Apoyo a la Función Pública y al Mejoramiento de la Gestión",null,null,"Recreación_Cultura_y_Otras_Manifestaciones_Sociales","1.3.5 Asuntos Jurídicos",null,"2.5. Proveer un entorno adecuado para el desarrollo de una vida digna","O11_Mejorar_la_conectividad_de_Jalisco_sus_regiones_y_municipios","O2E1 Actualizar los ordenamientos ecológicos territoriales y su aplicación efectiva",{"$nulls":3},"C2A2",{"$nulls":8},"Periódico"]
[null,"Atenguillo",null,"Operaciones Ajenas",null,null,"Educación","1.3.6 Organización de Procesos Electorales",null,"3.1. Desarrollar el potencial humano de los mexicanos con educación de calidad","O12_Reducir_la_pobreza_y_la_desigualdad","O2E2 Desarrollar el potencial humano de las regiones con acceso a una educación de calidad",{"$nulls":3},"C2A3"]
[null,"Atotonilco el Alto",null,"Obligaciones de Cumplimiento de Resolución Jurisdiccional",null,null,"Protección_Social","1.3.7 Población",null,"3.2. Garantizar la inclusión y la equidad en el Sistema Educativo","O13_Proteger_los_derechos_y_ampliar_las_oportunidades_de_desarrollo_de_los_grupos_prioritarios","O2E3 Generar oportunidades de empleos dignos aprovechando de forma sustentable las potencialidades regionales",{"$nulls":3},"C2A4"]
[null,"Atoyac",null,"Desastres Naturales",null,null,"Otros_Asuntos_Sociales","1.3.8 Territorio",null,"3.3. Ampliar el acceso a la cultura como un medio para la formación integral\n de los ciudadanos","O14_Mejorar_la_salud_de_la_población","O2E4 Incrementar y mejorar la infraestructura productiva  y social",{"$nulls":3},"C3A1"]
[null,"Autlán de Navarro",null,"Pensiones y Jubilaciones.",null,null,"Asuntos_Económicos_Comerciales_y_Laborales_Generales","1.3.9 Otros Asuntos de Orden Público y Seguridad Interior",null,"3.4. Promover el deporte de manera incluyente para fomentar una cultura\n de salud","O15_Aumentar_el_acceso_de_la_población_a_una_vivienda_digna","O2E5 Mejorar la capacidad de gestión de los funcionarios y autoridades municipales",{"$nulls":3},"C3A2"]
[null,"Ayotlán",null,"Aportaciones a la Seguiridad Social",null,null,"Agropecuaria_Silvicultura_Pesca_y_Caza","1.4.1 Relaciones Exteriores",null,"3.5.Hacer del desarrollo científico, tecnológico y la innovación pilares para el progreso económico y social sostenible","O16_Incrementar_el_acceso_la_equidad_y_la_calidad_de_la_educación","O2E6 Reducir la pobreza y la desigualdad",{"$nulls":3},"C3A3"]
[null,"Ayutla",{"$nulls":4},"Combustibles_y_Energía","1.5.1 Asuntos Financieros",null,"4.1. Mantener la estabilidad macroeconómica del país","O17_Incrementar_el_desarrollo_tecnológico_la_investigación_científica_y_la_innovación","O3E1 Conservar los suelos, incrementar las áreas verdes y las reservas territoriales",{"$nulls":3},"C4A4"]
[null,"La Barca",{"$nulls":4},"Minería_Manufacturas_y_Construcción","1.5.2 Asuntos Hacendarios",null,"4.2. Democratizar el acceso al financiamiento de proyectos con potencial de crecimiento","O18_Garantizar_el_acceso_de_toda_la_población_a_la_cultura_y_las_diferentes_expresiones_artísticas","O3E2 Impulsar un desarrollo urbano orientado al transporte sustentable"]
[null,"Bolaños",{"$nulls":4},"Transporte","1.7.1 Policía",null,"4.3. Promover el empleo de calidad","O19_Aumentar_la_práctica_del_deporte_y_actividades_físicas_de_la_población","O3E3 Incrementar y mejorar los servicios y espacios públicos"]
[null,"Cabo Corrientes",{"$nulls":4},"Comunicaciones","1.7.2 Protección Civil",null,"4.4. Impulsar y orientar un crecimiento verde incluyente y facilitador que preserve nuestro atrimonio natural al mismo tiempo que genere riqueza, competitividad y empleo","O20_Reducir_la_incidencia_delictiva_y_mejorar_la_percepción_de_seguridad","O3E4 Mejorar la conectividad y articulación de las principales ciudades con una perspectiva regional e interestatal"]
[null,"Casimiro Castillo",{"$nulls":4},"Turismo","1.7.3 Otros Asuntos de Orden Público y Seguridad",null,"4.5. Democratizar el acceso a servicios de telecomunicaciones","O21_Mejorar_la_impartición_de_justicia_con_un_sistema_eficaz_expedito_imparcial_y_transparente","O3E5 Ordenar el crecimiento de las áreas urbanas y asegurar el cumplimiento de la normatividad inherente"]
[null,"Cihuatlán",{"$nulls":4},"Ciencia_Tecnología_e_Innovación","1.7.4 Sistema Nacional de Seguridad Pública",null,"4.6. Abastecer de energía al país con precios competitivos, calidad y eficiencia a lo largo de la cadena productiva","O22_Reducir_la_impunidad_mejorando_la_imparcialidad_transparencia_y_eficiencia_en_la_procuración_de_justicia","O3E6 Promover un crecimiento urbano equitativo mediante la oferta de suelo accesible y de calidad a los sectores de menores ingresos"]
[null,"Zapotlán el Grande",{"$nulls":4},"Otras_Industrias_y_Otros_Asuntos_Económicos","1.8.1 Servicios Registrales, Administrativos y Patrimoniales",null,"4.7. Garantizar reglas claras que incentiven el desarrollo de un mercado interno competitivo","O23_Garantizar_el_respeto_y_la_protección_de_los_derechos_humanos_y_eliminar_la_discriminación","O3E7 Reducir la contaminación del agua y aire, así como la visual y auditiva"]
[null,"Cocula",{"$nulls":4},"Transacciones_de_la_Deuda_Financiera_y_Costo_Financiero_Deuda","1.8.2 Servicios Estadísticos",null,"4.8. Desarrollar los sectores estratégicos del país","O24_Mejorar_la_estabilidad_y_funcionalidad_del_sistema_democrático","O3E8 Reducir la fragmentación territorial y política en las áreas metropolitanas mediante la aplicación de un modelo de gobernanza metropolitana"]
[null,"Colotlán",{"$nulls":4},"Transferencias_Participaciones_y_Aportaciones","1.8.3 Servicios de Comunicación y Medios",null,"4.9. Contar con una infraestructura de transporte que se refleje en menores costos para realizar la actividad económica","O25_Mejorar_la_efectividad_de_las_instituciones_públicas_y_gubernamentales","O4E1 Fortalecer el desarrollo y la capacidad técnica y financiera de los organismos operadores del agua"]
[null,"Concepción de Buenos Aires",{"$nulls":4},"Saneamiento_del_Sistema_Financiero","1.8.4 Acceso a la Información Pública Gubernamental",null,"4.10. Construir un sector agropecuario y pesquero productivo que garantice la seguridad alimentaria del país","O26_Mejorar_la_igualdad_entre_los_géneros_y_empoderar_a_las_mujeres","O4E2 Incrementar los niveles de tratamiento de aguas residuales y su reutilización"]
[null,"Cuautitlán de García Barragán",{"$nulls":4},"Adeudos_Anteriores","1.8.5 Otros",null,"4.11. Aprovechar el potencial turístico de México para generar una mayor derrama económica en el país","O27_Incrementar_la_capacidad_innovadora_en_los_sectores_social_privado_y_público","O4E3 Incrementar y diversificar las fuentes de abastecimiento y captación de agua"]
[null,"Cuautla",{"$nulls":5},"2.1.1 Ordenación de Desechos",null,"5.1. Ampliar y fortalecer la presencia de México en el mundo",null,"O4E4 Mejorar la potabilización de las aguas para el consumo humano"]
[null,"Cuquío",{"$nulls":5},"2.1.2 Administración del Agua",null,"5.2. Promover el valor de México en el mundo mediante la difusión económica, turística y cultural",null,"O4E5 Modernizar y ampliar la infraestructura hidroagrícola"]
[null,"Chapala",{"$nulls":5},"2.1.3 Ordenación de Aguas Residuales, Drenaje y Alcantarillado",null,"5.3. Reafirmar el compromiso del país con el libre comercio, la movilidad de capitales y la integración productiva",null,"O4E6 Ordenar el uso y aprovechamiento del agua en cuencas y acuíferos"]
[null,"Chimaltitán",{"$nulls":5},"2.1.4 Reducción de la Contaminación",null,"5.4. Velar por los intereses de los mexicanos en el extranjero y proteger los derechos de los extranjeros en el territorio nacional",null,"O4E7 Proteger y recuperar los bosques, humedales y ríos"]
[null,"Chiquilistlán",{"$nulls":5},"2.1.5 Protección de la Diversidad Biológica y del Paisaje",{"$nulls":3},"O4E8 Reducir el desperdicio del agua y racionalizar su uso"]
[null,"Degollado",{"$nulls":5},"2.1.6 Otros de Protección Ambiental",{"$nulls":3},"O5E1 Ampliar y articular la red de transporte público masivo incentivando la multimodalidad"]
[null,"Ejutla",{"$nulls":5},"2.2.1 Urbanización",{"$nulls":3},"O5E2 Incrementar el uso de medios alternativos de traslado, desincentivando el uso del automóvil"]
[null,"Encarnación de Díaz",{"$nulls":5},"2.2.2 Desarrollo Comunitario",{"$nulls":3},"O5E3 Mejorar la infraestructura y equipamiento para la movilidad motorizada y no motorizada"]
[null,"Etzatlán",{"$nulls":5},"2.2.3 Abastecimiento de Agua",{"$nulls":3},"O5E4 Mejorar la seguridad y la cultura vial"]
[null,"El Grullo",{"$nulls":5},"2.2.4 Alumbrado Público",{"$nulls":3},"O5E5 Modernizar los sistemas de transporte público en las ciudades"]
[null,"Guachinango",{"$nulls":5},"2.2.5 Vivienda",{"$nulls":3},"O6E1 Incrementar la capacitación y profesionalización del personal de protección civil"]
[null,"Guadalajara",{"$nulls":5},"2.2.6 Servicios Comunales",{"$nulls":3},"O6E2 Incrementar la cultura de protección civil en la sociedad, el gobierno y la empresa"]
[null,"Hostotipaquillo",{"$nulls":5},"2.2.7 Desarrollo Regional",{"$nulls":3},"O6E3 Mejorar los procedimientos para disminuir los riesgos y la atención de emergencias"]
[null,"Huejúcar",{"$nulls":5},"2.3.1 Prestación de Servicios de Salud a la Comunidad",{"$nulls":3},"O6E4 Mejorar los sistemas de información de los riesgos a los que está expuesta la población y su entorno"]
[null,"Huejuquilla el Alto",{"$nulls":5},"2.3.2 Prestación de Servicios de Salud a la Persona",{"$nulls":3},"O6E5 Mejorar y establecer sistemas de alerta temprana multirriesgos"]
[null,"La Huerta",{"$nulls":5},"2.3.3 Generación de Recursos para la Salud",{"$nulls":3},"O7E1 Aumentar la disponibilidad de capital humano mejor calificado adecuado a la demanda del mercado laboral"]
[null,"Ixtlahuacán de los Membrillos",{"$nulls":5},"2.3.4 Rectoría del Sistema de Salud",{"$nulls":3},"O7E2 Erradicar el trabajo infantil"]
[null,"Ixtlahuacán del Río",{"$nulls":5},"2.3.5 Protección Social en Salud",{"$nulls":3},"O7E3 Incrementar la certificación de competencias laborales y profesionales"]
[null,"Jalostotitlán",{"$nulls":5},"2.4.1 Deporte y Recreación",{"$nulls":3},"O7E4 Incrementar la cultura empresarial de la responsabilidad social"]
[null,"Jamay",{"$nulls":5},"2.4.2 Cultura",{"$nulls":3},"O7E5 Incrementar la productividad con beneficios compartidos, la empleabilidad y la capacitación en el trabajo"]
[null,"Jesús María",{"$nulls":5},"2.4.3 Radio, Televisión y Editoriales",{"$nulls":3},"O7E6 Mejorar la protección de los derechos del trabajador"]
[null,"Jilotlán de los Dolores",{"$nulls":5},"2.4.4 Asuntos Religiosos y Otras Manifestaciones Sociales",{"$nulls":3},"O7E7 Mejorar la remuneración y las condiciones laborales de la población ocupada"]
[null,"Jocotepec",{"$nulls":5},"2.5.1 Educación Básica",{"$nulls":3},"O7E8 Propiciar el equilibrio entre empleadores y trabajadores para preservar la paz laboral"]
[null,"Juanacatlán",{"$nulls":5},"2.5.2 Educación Media Superior",{"$nulls":3},"O8E1 Aumentar las exportaciones de las unidades productivas"]
[null,"Juchitlán",{"$nulls":5},"2.5.3 Educación Superior",{"$nulls":3},"O8E2 Aumentar los niveles de innovación tecnológica, empresarial y social"]
[null,"Lagos de Moreno",{"$nulls":5},"2.5.4 Posgrado",{"$nulls":3},"O8E3 Estimular el espíritu empresarial y el desarrollo de emprendedores"]
[null,"El Limón",{"$nulls":5},"2.5.5 Educación para Adultos",{"$nulls":3},"O8E4 Facilitar el acceso al financiamiento y la asistencia técnica, especialmente a la micro y pequeña empresa"]
[null,"Magdalena",{"$nulls":5},"2.5.6 Otros Servicios Educativos y Actividades Inherentes",{"$nulls":3},"O8E5 Incrementar el desarrollo y la integración de las cadenas productivas, de proveeduría y los clústeres"]
[null,"Santa María del Oro",{"$nulls":5},"2.6.1 Enfermedad e Incapacidad",{"$nulls":3},"O8E6 Incrementar la inversión extranjera directa"]
[null,"La Manzanilla de la Paz",{"$nulls":5},"2.6.2 Edad Avanzada",{"$nulls":3},"O8E7 Mejorar e incrementar la infraestructura productiva"]
[null,"Mascota",{"$nulls":5},"2.6.3 Familia e Hijos",{"$nulls":3},"O8E8 Mejorar la calidad y la productividad de las unidades económicas"]
[null,"Mazamitla",{"$nulls":5},"2.6.4 Desempleo",{"$nulls":3},"O8E9 Simplificar los trámites y agilizar los procesos de apertura de empresas"]
[null,"Mexticacán",{"$nulls":5},"2.6.5 Alimentación y Nutrición",{"$nulls":3},"O9E1 Ampliar y modernizar la infraestructura rural productiva"]
[null,"Mezquitic",{"$nulls":5},"2.6.6 Apoyo Social para la Vivienda",{"$nulls":3},"O9E2 Aumentar la comercialización de los productos del sector primario dentro y fuera del país"]
[null,"Mixtlán",{"$nulls":5},"2.6.7 Indígenas",{"$nulls":3},"O9E3 Aumentar la industrialización y el valor agregado a la producción del sector primario"]
[null,"Ocotlán",{"$nulls":5},"2.6.8 Otros Grupos Vulnerables",{"$nulls":3},"O9E4 Incrementar el financiamiento, la capacitación y asistencia técnica a los productores rurales"]
[null,"Ojuelos de Jalisco",{"$nulls":5},"2.6.9 Otros de Seguridad Social y Asistencia Social",{"$nulls":3},"O9E5 Incrementar la producción sustentable y comercialización de la madera y sus derivados"]
[null,"Pihuamo",{"$nulls":5},"2.7.1 Otros Asuntos Sociales",{"$nulls":3},"O9E6 Mejorar la sanidad e inocuidad de los productos agropecuarios"]
[null,"Poncitlán",{"$nulls":5},"3.1.1 Asuntos Económicos y Comerciales en General",{"$nulls":3},"O10E1 Aumentar la atracción y captación de inversión en el sector"]
[null,"Puerto Vallarta",{"$nulls":5},"3.1.2 Asuntos Laborales Generales",{"$nulls":3},"O10E2 Incrementar la promoción integral de destinos y rutas turísticas"]
[null,"Villa Purificación",{"$nulls":5},"3.2.1 Agropecuaria",{"$nulls":3},"O10E3 Innovar y diversificar la oferta turística por región y destino de forma sostenible"]
[null,"Quitupan",{"$nulls":5},"3.2.2 Silvicultura",{"$nulls":3},"O10E4 Mejorar el entorno, la infraestructura y equipamiento en centros turísticos"]
[null,"El Salto",{"$nulls":5},"3.2.3 Acuacultura, Pesca y Caza",{"$nulls":3},"O10E5 Mejorar las capacidades turísticas locales y promover el emprendurismo en el sector"]
[null,"San Cristóbal de la Barranca",{"$nulls":5},"3.2.4 Agroindustrial",{"$nulls":3},"O11E1 Ampliar y modernizar la red de ferrocarriles"]
[null,"San Diego de Alejandría",{"$nulls":5},"3.2.5 Hidroagrícola",{"$nulls":3},"O11E2 Incrementar la accesibilidad a las telecomunicaciones"]
[null,"San Juan de los Lagos",{"$nulls":5},"3.2.6 Apoyo Financiero a la Banca y Seguro Agropecuario",{"$nulls":3},"O11E3 Incrementar y modernizar la red de carreteras"]
[null,"San Julián",{"$nulls":5},"3.3.1 Carbón y Otros Combustibles Minerales Sólidos",{"$nulls":3},"O11E4 Modernizar y ampliar la infraestructura aérea y la marítima"]
[null,"San Marcos",{"$nulls":5},"3.3.2 Petróleo y Gas Natural (Hidrocarburos)",{"$nulls":3},"O11E5 Propiciar la ampliación de servicios logísticos estratégicos para el desarrollo social y económico"]
[null,"San Martín de Bolaños",{"$nulls":5},"3.3.3 Combustibles Nucleares",{"$nulls":3},"O12E1 Ampliar las capacidades productivas de la población en condiciones de vulnerabilidad"]
[null,"San Martín Hidalgo",{"$nulls":5},"3.3.4 Otros Combustibles",{"$nulls":3},"O12E2 Incrementar la disponibilidad y el acceso a una adecuada alimentación de la población en condiciones de pobreza"]
[null,"San Miguel el Alto",{"$nulls":5},"3.3.5 Electricidad",{"$nulls":3},"O12E3 Mejorar el pago de impuestos y servicios públicos acorde con el nivel de vida e ingresos de la población"]
[null,"Gómez Farías",{"$nulls":5},"3.3.6 Energía no Eléctrica",{"$nulls":3},"O12E4 Mejorar la calidad y espacios en las viviendas de la población en situación de pobreza"]
[null,"San Sebastián del Oeste",{"$nulls":5},"3.4.1 Extracción de Recursos Minerales excepto los Combustibles Minerales",{"$nulls":3},"O12E5 Promover la cohesión social desde los espacios de deliberación pública, fortaleciendo las organizaciones sociales y la participación comunitaria"]
[null,"Santa María de los Ángeles",{"$nulls":5},"3.4.2 Manufacturas",{"$nulls":3},"O12E6 Reducir el rezago educativo"]
[null,"Sayula",{"$nulls":5},"3.4.3 Construcción",{"$nulls":3},"O13E1 Ampliar las capacidades productivas de los grupos prioritarios"]
[null,"Tala",{"$nulls":5},"3.5.1 Transporte por Carretera",{"$nulls":3},"O13E2 Brindar atención y acompañamiento a la población migrante"]
[null,"Talpa de Allende",{"$nulls":5},"3.5.2 Transporte por Agua y Puertos",{"$nulls":3},"O13E3 Garantizar la accesibilidad y la inclusión de las personas con discapacidad; y reducir el riego de adquirirla"]
[null,"Tamazula de Gordiano",{"$nulls":5},"3.5.3 Transporte por Ferrocarril",{"$nulls":3},"O13E4 Garantizar los derechos de los adultos mayores, incrementar su autonomía y promover el envejecimiento activo"]
[null,"Tapalpa",{"$nulls":5},"3.5.4 Transporte Aéreo",{"$nulls":3},"O13E5 Garantizar y restituir los derechos de las niñas, niños y adolescentes"]
[null,"Tecalitlán",{"$nulls":5},"3.5.5 Transporte por Oleoductos y Gasoductos y Otros Sistemas de Transporte",{"$nulls":3},"O13E6 Incrementar el ingreso, permanencia y conclusión de la formación educativa de estudiantes indígenas"]
[null,"Tecolotlán",{"$nulls":5},"3.5.6 Otros Relacionados con Transporte",{"$nulls":3},"O13E7 Mejorar la dotación de servicios públicos en las localidades con población indígena"]
[null,"Techaluta de Montenegro",{"$nulls":5},"3.6.1 Comunicaciones",{"$nulls":3},"O13E8 Reducir la violencia intrafamiliar y comunitaria"]
[null,"Tenamaxtlán",{"$nulls":5},"3.7.1 Turismo",{"$nulls":3},"O13E9 Reducir los principales riesgos sociales y de salud a los que está expuesta la población joven (alcoholismo y drogadicción, embarazos adolescente, abandono escolar)"]
[null,"Teocaltiche",{"$nulls":5},"3.7.2 Hoteles y Restaurantes",{"$nulls":3},"O14E1 Impulsar la integración y universalidad de los servicios de salud"]
[null,"Teocuitatlán de Corona",{"$nulls":5},"3.8.1 Investigación Científica",{"$nulls":3},"O14E2 Incrementar el acceso efectivo a los servicios de salud, en especial la población en condiciones de vulnerabilidad y pobreza"]
[null,"Tepatitlán de Morelos",{"$nulls":5},"3.8.2 Desarrollo Tecnológico",{"$nulls":3},"O14E3 Mejorar la calidad en la prestación de los servicios de salud"]
[null,"Tequila",{"$nulls":5},"3.8.3 Servicios Científicos y Tecnológicos",{"$nulls":3},"O14E4 Reducir el sobrepeso y la obesidad de la población"]
[null,"Teuchitlán",{"$nulls":5},"3.8.4 Innovación",{"$nulls":3},"O14E5 Reducir y controlar los factores de riesgo para la salud con enfoque preventivo a la comunidad"]
[null,"Tizapán el Alto",{"$nulls":5},"3.9.1 Comercio, Distribución, Almacenamiento y Depósito",{"$nulls":3},"O15E1 Facilitar el acceso al financiamiento para adquirir una vivienda propia a la población más vulnerable"]
[null,"Tlajomulco de Zúñiga",{"$nulls":5},"3.9.2 Otras Industrias",{"$nulls":3},"O15E2 Garantizar la aplicación de los instrumentos de planeación urbana en la construcción de fraccionamientos y para evitar asentamiento irregulares"]
[null,"Tlaquepaque",{"$nulls":5},"3.9.3 Otros Asuntos Económicos",{"$nulls":3},"O15E3 Garantizar reservas territoriales suficientes para la construcción de viviendas"]
[null,"Tolimán",{"$nulls":5},"4.1.1 Deuda Pública Interna",{"$nulls":3},"O15E4 Incrementar la efectividad de los programas sociales dirigidos a la adquisición, autoconstrucción y mejora de la vivienda"]
[null,"Tomatlán",{"$nulls":5},"4.1.2 Deuda Pública Externa",{"$nulls":3},"O15E5 Mejorar el entorno y servicios en las viviendas en zonas urbanas y rurales marginadas"]
[null,"Tonalá",{"$nulls":5},"4.2.1 Transferencias entre Diferentes Niveles y Ordenes de Gobierno",{"$nulls":3},"O15E6 Mejorar los procesos de certificación de la propiedad de la vivienda en asentamientos irregulares"]
[null,"Tonaya",{"$nulls":5},"4.2.2 Participaciones entre Diferentes Niveles y Ordenes de Gobierno",{"$nulls":3},"O16E1 Ampliar la oferta, la calidad y el acceso para realizar estudios de posgrado y de educación continua"]
[null,"Tonila",{"$nulls":5},"4.2.3 Aportaciones entre Diferentes Niveles y Ordenes de Gobierno",{"$nulls":3},"O16E2 Ampliar las oportunidades educativas, en especial la población en condiciones de vulnerabilidad y pobreza"]
[null,"Totatiche",{"$nulls":5},"4.3.1 Saneamiento del Sistema Financiero",{"$nulls":3},"O16E3 Ampliar y mejorar la enseñanza de la ciencia y la tecnología en la educación básica"]
[null,"Tototlán",{"$nulls":5},"4.3.2 Apoyos IPAB",{"$nulls":3},"O16E4 Diversificar la oferta de programas de educación superior y sus modalidades"]
[null,"Tuxcacuesco",{"$nulls":5},"4.3.3 Banca de Desarrollo",{"$nulls":3},"O16E5 Incrementar en la educación superior la movilidad de estudiantes y académicos a nivel estatal, nacional e internacional"]
[null,"Tuxcueca",{"$nulls":5},"4.3.4 Apoyo a los programas de reestructura en unidades de inversión (UDIS)",{"$nulls":3},"O16E6 Incrementar espacios educativos comunes que permitan la conjunción de esfuerzos de instituciones para mejorar la calidad y consolidar el clúster de la educación superior en el estado"]
[null,"Tuxpan",{"$nulls":5},"4.4.1 Adeudos de Ejercicios Fiscales Anteriores",{"$nulls":3},"O16E7 Incrementar la cobertura de la educación media superior y superior"]
[null,"Unión de San Antonio",{"$nulls":9},"O16E8 Mejorar el aprendizaje de un segundo idioma por parte de los estudiantes en todos los niveles educativos, particularmente el básico"]
[null,"Unión de Tula",{"$nulls":9},"O16E9 Mejorar la capacitación y actualización de docente y directivos del sistema educativo"]
[null,"Valle de Guadalupe",{"$nulls":9},"O16E10 Reducir el rezago educativo"]
[null,"Valle de Juárez",{"$nulls":9},"O16E11 Reducir la violencia en los planteles educativos"]
[null,"San Gabriel",{"$nulls":9},"O17E1 Ampliar y mejorar los instrumentos de transferencia y difusión tecnológica"]
[null,"San Ignacio Cerro Gordo",{"$nulls":9},"O17E2 Aumentar las fuentes de financiamiento para actividades de ciencia y tecnología"]
[null,"Villa Corona",{"$nulls":9},"O17E3 Aumentar las instituciones y empresas que realizan actividades de investigación y desarrollo tecnológico"]
[null,"Villa Guerrero",{"$nulls":9},"O17E4 Incrementar el desarrollo de proyectos científicos tecnológicos entre los sectores académicos y las empresas"]
[null,"Villa Hidalgo",{"$nulls":9},"O17E5 Incrementar la I+D en las empresas que exportan productos de alta tecnología"]
[null,"Cañadas de Obregón",{"$nulls":9},"O17E6 Incrementar la investigación y el desarrollo tecnológico en las instituciones educativas"]
[null,"Yahualica de González Gallo",{"$nulls":9},"O17E7 Mejorar y ampliar la formación de recursos humanos calificados en el campo de la investigación y desarrollo"]
[null,"Zacoalco de Torres",{"$nulls":9},"O18E1 Diversificar y ampliar las alternativas de recreación cultural en regiones y municipios"]
[null,"Zapopan",{"$nulls":9},"O18E2 Garantizar la disponibilidad, seguridad y conservación de los espacios y sitios culturales"]
[null,"Zapotiltic",{"$nulls":9},"O18E3 Incrementar la disponibilidad de recursos humanos en el ámbito artístico"]
[null,"Zapotitlán de Vadillo",{"$nulls":9},"O18E4 Incrementar las capacidades creativas y de producción artística de la población"]
[null,"Zapotlán del Rey",{"$nulls":9},"O18E5 Mejorar las condiciones materiales, humanas e institucionales vinculadas a la cultura"]
[null,"Zapotlanejo",{"$nulls":9},"O19E1 Acrecentar la capacitación y formación de instructores y entrenadores en actividades físicas y deportivas"]
[{"$nulls":11},"O19E2 Incrementar la práctica de actividades físicas y deportivas en todos los niveles educativos, y la población en general"]
[{"$nulls":11},"O19E3 Incrementar y mejorar los espacios para la práctica de actividades físicas y deportivas"]
[{"$nulls":11},"O19E4 Mejorar y ampliar el sistema estatal del deporte de alto rendimiento"]
[{"$nulls":11},"O19E5 Promover la práctica del deporte competitivo en el ámbito local, regional y estatal"]
[{"$nulls":11},"O20E1 Fortalecer las capacidades y equipamiento de los cuerpos de seguridad pública"]
[{"$nulls":11},"O20E2 Garantizar la honestidad, confianza y el profesionalismo del personal que labora en las instituciones de seguridad pública y privada a través de un sistema adecuado de evaluación"]
[{"$nulls":11},"O20E3 Incrementar el acceso de la población a las actividades culturales, deportivas y recreativas"]
[{"$nulls":11},"O20E4 Incrementar el nivel de denuncia ciudadana y su correcta atención"]
[{"$nulls":11},"O20E5 Incrementar la participación ciudadana en la prevención del delito"]
[{"$nulls":11},"O20E6 Intensificar y mejorar la comunicación en materia de prevención del delito y combate a la inseguridad"]
[{"$nulls":11},"O21E1 Concluir y consolidar el nuevo sistema penal acusatorio"]
[{"$nulls":11},"O21E2 Disminuir la incidencia de los actos de corrupción"]
[{"$nulls":11},"O21E3 Facilitar el acceso de la justicia a nivel local y regional"]
[{"$nulls":11},"O21E4 Incrementar el uso de métodos alternativos de solución de conflictos"]
[{"$nulls":11},"O21E5 Mejorar el sistema penal con el propósito de reducir la sobrepoblación penitenciaria"]
[{"$nulls":11},"O21E6 Mejorar la capacitación y formación de los recursos humanos del poder judicial"]
[{"$nulls":11},"O21E7 Proporcionar asistencia y representación eficaz a las víctimas con perspectiva de derechos humanos"]
[{"$nulls":11},"O22E1 Aumentar la probabilidad de captura y condena por delitos cometidos"]
[{"$nulls":11},"O22E2 Disminuir la incidencia de los actos de corrupción"]
[{"$nulls":11},"O22E3 Investigar y perseguir el delito con mayor eficacia"]
[{"$nulls":11},"O22E4 Mejorar la calidad de los servicios que prestan los ministerios públicos"]
[{"$nulls":11},"O22E5 Mejorar la capacitación y formación de los recursos humanos para la procuración de justicia"]
[{"$nulls":11},"O22E6 Mejorar la percepción ciudadana sobre el quehacer del sistema de procuración de justicia"]
[{"$nulls":11},"O23E1 Disminuir la incidencia de las violaciones a los Derechos Humanos"]
[{"$nulls":11},"O23E2 Mejorar la atención a las víctimas de violaciones a los derechos humanos"]
[{"$nulls":11},"O23E3 Reducir la violencia y discriminación, particularmente aquella ejercida en contra de grupos en situación de vulnerabilidad"]
[{"$nulls":11},"O24E1 Contribuir al desarrollo democrático social y político"]
[{"$nulls":11},"O24E2 Incrementar la participación ciudadana en asuntos públicos y en organizaciones civiles y comunitarias"]
[{"$nulls":11},"O24E3 Mejorar la coordinación de los tres órdenes y niveles de gobierno"]
[{"$nulls":11},"O24E4 Prevenir y gestionar conflictos sociales a través del diálogo constructivo"]
[{"$nulls":11},"O25E1 Disminuir la incidencia de los actos de corrupción"]
[{"$nulls":11},"O25E2 Impulsar un gobierno abierto, promotor de la transparencia, la rendición de cuentas, la participación ciudadana y del uso de las tecnologías de información y comunicación"]
[{"$nulls":11},"O25E3 Incrementar la disponibilidad de recursos financieros y mejorar su uso y asignación"]
[{"$nulls":11},"O25E4 Mejorar la calidad y disponibilidad de información para la toma de decisiones de la sociedad y el gobierno"]
[{"$nulls":11},"O25E5 Mejorar la calidad y la prestación de servicios públicos"]
[{"$nulls":11},"O25E6 Mejorar la capacitación y profesionalización de los funcionarios y servidores públicos"]
[{"$nulls":11},"O25E7 Mejorar la planeación, programación, el seguimiento y la evaluación para una gestión pública eficiente orientada a resultados"]
[{"$nulls":11},"O26E1 Asegurar el acceso igualitario a la justicia"]
[{"$nulls":11},"O26E2 Garantizar el acceso universal a la salud reproductiva y sexual"]
[{"$nulls":11},"O26E3 Incrementar el acceso a la educación de niñas y mujeres"]
[{"$nulls":11},"O26E4 Incrementar la participación de las mujeres en cargos públicos y en puestos de elección popular"]
[{"$nulls":11},"O26E5 Incrementar las oportunidades laborales dignas para las mujeres, en particular las mujeres jefas de familia"]
[{"$nulls":11},"O26E6 Reducir la violencia contra las mujeres"]
[{"$nulls":11},"O27E1 Crear espacios físicos y virtuales, y otros mecanismos de diálogo y reflexión para generar soluciones innovadoras a problemas públicos y sociales"]
[{"$nulls":11},"O27E2 Desarrollar alianzas y redes entre empresas, gobierno, grupos sociales y universidades para impulsar la innovación, el emprendurismo y la creatividad que genere la creación de valor público y económico"]
[{"$nulls":11},"O27E3 Incrementar las actividades de investigación y desarrollo, principalmente en el sector agropecuario, la industria alimentaria, la industria creativa y la biotecnológica"]
[{"$nulls":11},"O27E4 Promover la innovación en el sector gubernamental en todos los órdenes y niveles de gobierno"]